{"text_format":"1","workbook":"xlsx","n_sheets":2,"sheets":["Sheet1","Report"],"not_rendered":{"charts":0,"images":0,"macros":1,"external_links":0,"defined_names":0,"comments":0,"pivot_tables":0},"unopened":[],"bounds":{"document_bytes":16777216,"sheet_cells":100000,"rows_first":2000,"rows_last":500,"rows_between":2000,"halvings":0,"cell_chars":16384,"cell_head_chars":4096},"cells_cut":0,"cells_raw":0,"read":"whole","date_system":"1900"}

{"sheet":"Sheet1","index":0,"n_rows":69,"n_cols":21,"rows_kept":69,"cut":false,"hidden":false,"merged":[]}
["Name","Earliest CSED","Earliest Lien Determ Dt","Earliest OI Due Date","Follow Up Dt","Initial Contact Due Dt","Last Touch Dt","Lien Determ Cd","Over Age Ind","RO Assign Dt","Issuance Cycle","Large Dollar","Pending Approval","Summons Ind","CSED Notify","OI Notify","FU Notify","Lien Notify","Assign Notify","Init Cont.","Last Touch"]
["BEVERLY WHITTAKER"," /  /    "," /  /    "," /  /    ","2024-04-12"," /  /    ","2022-04-18","N/A",null,"2021-08-30",0,null,"No",0,{"$f":"IF(DataTbl[[#This Row],[Earliest CSED]]=\" /  /    \",\"\",IF(VALUE(DataTbl[[#This Row],[Earliest CSED]])-VALUE(TODAY())<365,\"CSED\",\"\"))","v":""},{"$f":"IF(DataTbl[[#This Row],[Earliest OI Due Date]]=\" /  /    \",\"\",IF(VALUE(DataTbl[[#This Row],[Earliest OI Due Date]])-VALUE(TODAY())<30,\"OI\",\"\"))","v":""},{"$f":"IF(DataTbl[[#This Row],[Follow Up Dt]]=\" /  /    \",\"\",IF(VALUE(DataTbl[[#This Row],[Follow Up Dt]])-VALUE(TODAY())<0,\"FU\",\"\"))","v":""},{"$f":"IF(DataTbl[[#This Row],[Earliest Lien Determ Dt]]=\" /  /    \",\"\",IF(AND(VALUE(DataTbl[[#This Row],[Earliest Lien Determ Dt]])-VALUE(TODAY())<=5,DataTbl[[#This Row],[Lien Determ Cd]]=\"?\"),\"Lien\",\"\"))","v":""},{"$f":"IF(DataTbl[[#This Row],[RO Assign Dt]]=\" /  /    \",\"\",IF(VALUE(TODAY()-VALUE(DataTbl[[#This Row],[RO Assign Dt]]))>545,\"Assign\",\"\"))","v":""},{"$f":"IF(DataTbl[[#This Row],[Initial Contact Due Dt]]=\" /  /    \",\"\",IF(VALUE(DataTbl[[#This Row],[Initial Contact Due Dt]])-VALUE(TODAY())<5,\"Init. Cont.\",\"\"))","v":""},{"$f":"IF(DataTbl[[#This Row],[Last Touch Dt]]=\" /  /    \",\"\",IF(VALUE(TODAY())-VALUE(DataTbl[[#This Row],[Last Touch Dt]])>30,\"No Touch\",\"\"))","v":"No Touch"}]
["GENESIS LEARNING & DEVELOPMENT CTR"," /  /    "," /  /    ","2021-07-09"," /  /    "," /  /    ","2021-11-02","N/A",null,"2020-10-03",0,null,"No",0,{"$f":"IF(DataTbl[[#This Row],[Earliest CSED]]=\" /  /    \",\"\",IF(VALUE(DataTbl[[#This Row],[Earliest CSED]])-VALUE(TODAY())<365,\"CSED\",\"\"))","v":""},{"$f":"IF(DataTbl[[#This Row],[Earliest OI Due Date]]=\" /  /    \",\"\",IF(VALUE(DataTbl[[#This Row],[Earliest OI Due Date]])-VALUE(TODAY())<30,\"OI\",\"\"))","v":"OI"},{"$f":"IF(DataTbl[[#This Row],[Follow Up Dt]]=\" /  /    \",\"\",IF(VALUE(DataTbl[[#This Row],[Follow Up Dt]])-VALUE(TODAY())<0,\"FU\",\"\"))","v":""},{"$f":"IF(DataTbl[[#This Row],[Earliest Lien Determ Dt]]=\" /  /    \",\"\",IF(AND(VALUE(DataTbl[[#This Row],[Earliest Lien Determ Dt]])-VALUE(TODAY())<=5,DataTbl[[#This Row],[Lien Determ Cd]]=\"?\"),\"Lien\",\"\"))","v":""},{"$f":"IF(DataTbl[[#This Row],[RO Assign Dt]]=\" /  /    \",\"\",IF(VALUE(TODAY()-VALUE(DataTbl[[#This Row],[RO Assign Dt]]))>545,\"Assign\",\"\"))","v":"Assign"},{"$f":"IF(DataTbl[[#This Row],[Initial Contact Due Dt]]=\" /  /    \",\"\",IF(VALUE(DataTbl[[#This Row],[Initial Contact Due Dt]])-VALUE(TODAY())<5,\"Init. Cont.\",\"\"))","v":""},{"$f":"IF(DataTbl[[#This Row],[Last Touch Dt]]=\" /  /    \",\"\",IF(VALUE(TODAY())-VALUE(DataTbl[[#This Row],[Last Touch Dt]])>30,\"No Touch\",\"\"))","v":"No Touch"}]
["JOHN W WILSON JR"," /  /    "," /  /    "," /  /    "," /  /    "," /  /    ","2022-03-28","R",null,"2020-09-05",0,null,"No",0,{"$f":"IF(DataTbl[[#This Row],[Earliest CSED]]=\" /  /    \",\"\",IF(VALUE(DataTbl[[#This Row],[Earliest CSED]])-VALUE(TODAY())<365,\"CSED\",\"\"))","v":""},{"$f":"IF(DataTbl[[#This Row],[Earliest OI Due Date]]=\" /  /    \",\"\",IF(VALUE(DataTbl[[#This Row],[Earliest OI Due Date]])-VALUE(TODAY())<30,\"OI\",\"\"))","v":""},{"$f":"IF(DataTbl[[#This Row],[Follow Up Dt]]=\" /  /    \",\"\",IF(VALUE(DataTbl[[#This Row],[Follow Up Dt]])-VALUE(TODAY())<0,\"FU\",\"\"))","v":""},{"$f":"IF(DataTbl[[#This Row],[Earliest Lien Determ Dt]]=\" /  /    \",\"\",IF(AND(VALUE(DataTbl[[#This Row],[Earliest Lien Determ Dt]])-VALUE(TODAY())<=5,DataTbl[[#This Row],[Lien Determ Cd]]=\"?\"),\"Lien\",\"\"))","v":""},{"$f":"IF(DataTbl[[#This Row],[RO Assign Dt]]=\" /  /    \",\"\",IF(VALUE(TODAY()-VALUE(DataTbl[[#This Row],[RO Assign Dt]]))>545,\"Assign\",\"\"))","v":"Assign"},{"$f":"IF(DataTbl[[#This Row],[Initial Contact Due Dt]]=\" /  /    \",\"\",IF(VALUE(DataTbl[[#This Row],[Initial Contact Due Dt]])-VALUE(TODAY())<5,\"Init. Cont.\",\"\"))","v":""},{"$f":"IF(DataTbl[[#This Row],[Last Touch Dt]]=\" /  /    \",\"\",IF(VALUE(TODAY())-VALUE(DataTbl[[#This Row],[Last Touch Dt]])>30,\"No Touch\",\"\"))","v":"No Touch"}]
["OLC FOODS LLC"," /  /    "," /  /    "," /  /    ","2022-03-17"," /  /    ","2022-05-02","N/A",null,"2022-05-02",0,null,"No",0,{"$f":"IF(DataTbl[[#This Row],[Earliest CSED]]=\" /  /    \",\"\",IF(VALUE(DataTbl[[#This Row],[Earliest CSED]])-VALUE(TODAY())<365,\"CSED\",\"\"))","v":""},{"$f":"IF(DataTbl[[#This Row],[Earliest OI Due Date]]=\" /  /    \",\"\",IF(VALUE(DataTbl[[#This Row],[Earliest OI Due Date]])-VALUE(TODAY())<30,\"OI\",\"\"))","v":""},{"$f":"IF(DataTbl[[#This Row],[Follow Up Dt]]=\" /  /    \",\"\",IF(VALUE(DataTbl[[#This Row],[Follow Up Dt]])-VALUE(TODAY())<0,\"FU\",\"\"))","v":"FU"},{"$f":"IF(DataTbl[[#This Row],[Earliest Lien Determ Dt]]=\" /  /    \",\"\",IF(AND(VALUE(DataTbl[[#This Row],[Earliest Lien Determ Dt]])-VALUE(TODAY())<=5,DataTbl[[#This Row],[Lien Determ Cd]]=\"?\"),\"Lien\",\"\"))","v":""},{"$f":"IF(DataTbl[[#This Row],[RO Assign Dt]]=\" /  /    \",\"\",IF(VALUE(TODAY()-VALUE(DataTbl[[#This Row],[RO Assign Dt]]))>545,\"Assign\",\"\"))","v":""},{"$f":"IF(DataTbl[[#This Row],[Initial Contact Due Dt]]=\" /  /    \",\"\",IF(VALUE(DataTbl[[#This Row],[Initial Contact Due Dt]])-VALUE(TODAY())<5,\"Init. Cont.\",\"\"))","v":""},{"$f":"IF(DataTbl[[#This Row],[Last Touch Dt]]=\" /  /    \",\"\",IF(VALUE(TODAY())-VALUE(DataTbl[[#This Row],[Last Touch Dt]])>30,\"No Touch\",\"\"))","v":""}]
["BELINDA L BRIGHT"," /  /    "," /  /    "," /  /    ","2022-05-20"," /  /    ","2022-05-23","R",null,"2022-01-07",0,null,"No",null,{"$f":"IF(DataTbl[[#This Row],[Earliest CSED]]=\" /  /    \",\"\",IF(VALUE(DataTbl[[#This Row],[Earliest CSED]])-VALUE(TODAY())<365,\"CSED\",\"\"))","v":""},{"$f":"IF(DataTbl[[#This Row],[Earliest OI Due Date]]=\" /  /    \",\"\",IF(VALUE(DataTbl[[#This Row],[Earliest OI Due Date]])-VALUE(TODAY())<30,\"OI\",\"\"))","v":""},{"$f":"IF(DataTbl[[#This Row],[Follow Up Dt]]=\" /  /    \",\"\",IF(VALUE(DataTbl[[#This Row],[Follow Up Dt]])-VALUE(TODAY())<0,\"FU\",\"\"))","v":"FU"},{"$f":"IF(DataTbl[[#This Row],[Earliest Lien Determ Dt]]=\" /  /    \",\"\",IF(AND(VALUE(DataTbl[[#This Row],[Earliest Lien Determ Dt]])-VALUE(TODAY())<=5,DataTbl[[#This Row],[Lien Determ Cd]]=\"?\"),\"Lien\",\"\"))","v":""},{"$f":"IF(DataTbl[[#This Row],[RO Assign Dt]]=\" /  /    \",\"\",IF(VALUE(TODAY()-VALUE(DataTbl[[#This Row],[RO Assign Dt]]))>545,\"Assign\",\"\"))","v":""},{"$f":"IF(DataTbl[[#This Row],[Initial Contact Due Dt]]=\" /  /    \",\"\",IF(VALUE(DataTbl[[#This Row],[Initial Contact Due Dt]])-VALUE(TODAY())<5,\"Init. Cont.\",\"\"))","v":""},{"$f":"IF(DataTbl[[#This Row],[Last Touch Dt]]=\" /  /    \",\"\",IF(VALUE(TODAY())-VALUE(DataTbl[[#This Row],[Last Touch Dt]])>30,\"No Touch\",\"\"))","v":""}]
["CHRISTOPHER S & JESSICA E LANE"," /  /    "," /  /    "," /  /    "," /  /    "," /  /    ","2022-05-11","N/A",null,"2022-05-05",0,null,"No",0,{"$f":"IF(DataTbl[[#This Row],[Earliest CSED]]=\" /  /    \",\"\",IF(VALUE(DataTbl[[#This Row],[Earliest CSED]])-VALUE(TODAY())<365,\"CSED\",\"\"))","v":""},{"$f":"IF(DataTbl[[#This Row],[Earliest OI Due Date]]=\" /  /    \",\"\",IF(VALUE(DataTbl[[#This Row],[Earliest OI Due Date]])-VALUE(TODAY())<30,\"OI\",\"\"))","v":""},{"$f":"IF(DataTbl[[#This Row],[Follow Up Dt]]=\" /  /    \",\"\",IF(VALUE(DataTbl[[#This Row],[Follow Up Dt]])-VALUE(TODAY())<0,\"FU\",\"\"))","v":""},{"$f":"IF(DataTbl[[#This Row],[Earliest Lien Determ Dt]]=\" /  /    \",\"\",IF(AND(VALUE(DataTbl[[#This Row],[Earliest Lien Determ Dt]])-VALUE(TODAY())<=5,DataTbl[[#This Row],[Lien Determ Cd]]=\"?\"),\"Lien\",\"\"))","v":""},{"$f":"IF(DataTbl[[#This Row],[RO Assign Dt]]=\" /  /    \",\"\",IF(VALUE(TODAY()-VALUE(DataTbl[[#This Row],[RO Assign Dt]]))>545,\"Assign\",\"\"))","v":""},{"$f":"IF(DataTbl[[#This Row],[Initial Contact Due Dt]]=\" /  /    \",\"\",IF(VALUE(DataTbl[[#This Row],[Initial Contact Due Dt]])-VALUE(TODAY())<5,\"Init. Cont.\",\"\"))","v":""},{"$f":"IF(DataTbl[[#This Row],[Last Touch Dt]]=\" /  /    \",\"\",IF(VALUE(TODAY())-VALUE(DataTbl[[#This Row],[Last Touch Dt]])>30,\"No Touch\",\"\"))","v":""}]
["JANUS ESOP HOLDINGS INC"," /  /    "," /  /    "," /  /    "," /  /    "," /  /    ","2022-04-28","?",null,"2021-06-12",0,null,"No",0,{"$f":"IF(DataTbl[[#This Row],[Earliest CSED]]=\" /  /    \",\"\",IF(VALUE(DataTbl[[#This Row],[Earliest CSED]])-VALUE(TODAY())<365,\"CSED\",\"\"))","v":""},{"$f":"IF(DataTbl[[#This Row],[Earliest OI Due Date]]=\" /  /    \",\"\",IF(VALUE(DataTbl[[#This Row],[Earliest OI Due Date]])-VALUE(TODAY())<30,\"OI\",\"\"))","v":""},{"$f":"IF(DataTbl[[#This Row],[Follow Up Dt]]=\" /  /    \",\"\",IF(VALUE(DataTbl[[#This Row],[Follow Up Dt]])-VALUE(TODAY())<0,\"FU\",\"\"))","v":""},{"$f":"IF(DataTbl[[#This Row],[Earliest Lien Determ Dt]]=\" /  /    \",\"\",IF(AND(VALUE(DataTbl[[#This Row],[Earliest Lien Determ Dt]])-VALUE(TODAY())<=5,DataTbl[[#This Row],[Lien Determ Cd]]=\"?\"),\"Lien\",\"\"))","v":""},{"$f":"IF(DataTbl[[#This Row],[RO Assign Dt]]=\" /  /    \",\"\",IF(VALUE(TODAY()-VALUE(DataTbl[[#This Row],[RO Assign Dt]]))>545,\"Assign\",\"\"))","v":""},{"$f":"IF(DataTbl[[#This Row],[Initial Contact Due Dt]]=\" /  /    \",\"\",IF(VALUE(DataTbl[[#This Row],[Initial Contact Due Dt]])-VALUE(TODAY())<5,\"Init. Cont.\",\"\"))","v":""},{"$f":"IF(DataTbl[[#This Row],[Last Touch Dt]]=\" /  /    \",\"\",IF(VALUE(TODAY())-VALUE(DataTbl[[#This Row],[Last Touch Dt]])>30,\"No Touch\",\"\"))","v":""}]
["RALPH E CURTIS"," /  /    "," /  /    "," /  /    ","2022-04-15"," /  /    ","2022-04-15","R",null,"2022-01-18",0,null,"No",null,{"$f":"IF(DataTbl[[#This Row],[Earliest CSED]]=\" /  /    \",\"\",IF(VALUE(DataTbl[[#This Row],[Earliest CSED]])-VALUE(TODAY())<365,\"CSED\",\"\"))","v":""},{"$f":"IF(DataTbl[[#This Row],[Earliest OI Due Date]]=\" /  /    \",\"\",IF(VALUE(DataTbl[[#This Row],[Earliest OI Due Date]])-VALUE(TODAY())<30,\"OI\",\"\"))","v":""},{"$f":"IF(DataTbl[[#This Row],[Follow Up Dt]]=\" /  /    \",\"\",IF(VALUE(DataTbl[[#This Row],[Follow Up Dt]])-VALUE(TODAY())<0,\"FU\",\"\"))","v":"FU"},{"$f":"IF(DataTbl[[#This Row],[Earliest Lien Determ Dt]]=\" /  /    \",\"\",IF(AND(VALUE(DataTbl[[#This Row],[Earliest Lien Determ Dt]])-VALUE(TODAY())<=5,DataTbl[[#This Row],[Lien Determ Cd]]=\"?\"),\"Lien\",\"\"))","v":""},{"$f":"IF(DataTbl[[#This Row],[RO Assign Dt]]=\" /  /    \",\"\",IF(VALUE(TODAY()-VALUE(DataTbl[[#This Row],[RO Assign Dt]]))>545,\"Assign\",\"\"))","v":""},{"$f":"IF(DataTbl[[#This Row],[Initial Contact Due Dt]]=\" /  /    \",\"\",IF(VALUE(DataTbl[[#This Row],[Initial Contact Due Dt]])-VALUE(TODAY())<5,\"Init. Cont.\",\"\"))","v":""},{"$f":"IF(DataTbl[[#This Row],[Last Touch Dt]]=\" /  /    \",\"\",IF(VALUE(TODAY())-VALUE(DataTbl[[#This Row],[Last Touch Dt]])>30,\"No Touch\",\"\"))","v":"No Touch"}]
["SCOTT E CURTIS"," /  /    "," /  /    "," /  /    ","2022-05-20"," /  /    ","2022-05-23","R",null,"2022-01-18",0,null,"No",null,{"$f":"IF(DataTbl[[#This Row],[Earliest CSED]]=\" /  /    \",\"\",IF(VALUE(DataTbl[[#This Row],[Earliest CSED]])-VALUE(TODAY())<365,\"CSED\",\"\"))","v":""},{"$f":"IF(DataTbl[[#This Row],[Earliest OI Due Date]]=\" /  /    \",\"\",IF(VALUE(DataTbl[[#This Row],[Earliest OI Due Date]])-VALUE(TODAY())<30,\"OI\",\"\"))","v":""},{"$f":"IF(DataTbl[[#This Row],[Follow Up Dt]]=\" /  /    \",\"\",IF(VALUE(DataTbl[[#This Row],[Follow Up Dt]])-VALUE(TODAY())<0,\"FU\",\"\"))","v":"FU"},{"$f":"IF(DataTbl[[#This Row],[Earliest Lien Determ Dt]]=\" /  /    \",\"\",IF(AND(VALUE(DataTbl[[#This Row],[Earliest Lien Determ Dt]])-VALUE(TODAY())<=5,DataTbl[[#This Row],[Lien Determ Cd]]=\"?\"),\"Lien\",\"\"))","v":""},{"$f":"IF(DataTbl[[#This Row],[RO Assign Dt]]=\" /  /    \",\"\",IF(VALUE(TODAY()-VALUE(DataTbl[[#This Row],[RO Assign Dt]]))>545,\"Assign\",\"\"))","v":""},{"$f":"IF(DataTbl[[#This Row],[Initial Contact Due Dt]]=\" /  /    \",\"\",IF(VALUE(DataTbl[[#This Row],[Initial Contact Due Dt]])-VALUE(TODAY())<5,\"Init. Cont.\",\"\"))","v":""},{"$f":"IF(DataTbl[[#This Row],[Last Touch Dt]]=\" /  /    \",\"\",IF(VALUE(TODAY())-VALUE(DataTbl[[#This Row],[Last Touch Dt]])>30,\"No Touch\",\"\"))","v":""}]
["CHEROKEE MILLWRIGHT INC"," /  /    "," /  /    "," /  /    "," /  /    "," /  /    ","2022-05-19","?",null,"2021-10-16",0,"$","No",0,{"$f":"IF(DataTbl[[#This Row],[Earliest CSED]]=\" /  /    \",\"\",IF(VALUE(DataTbl[[#This Row],[Earliest CSED]])-VALUE(TODAY())<365,\"CSED\",\"\"))","v":""},{"$f":"IF(DataTbl[[#This Row],[Earliest OI Due Date]]=\" /  /    \",\"\",IF(VALUE(DataTbl[[#This Row],[Earliest OI Due Date]])-VALUE(TODAY())<30,\"OI\",\"\"))","v":""},{"$f":"IF(DataTbl[[#This Row],[Follow Up Dt]]=\" /  /    \",\"\",IF(VALUE(DataTbl[[#This Row],[Follow Up Dt]])-VALUE(TODAY())<0,\"FU\",\"\"))","v":""},{"$f":"IF(DataTbl[[#This Row],[Earliest Lien Determ Dt]]=\" /  /    \",\"\",IF(AND(VALUE(DataTbl[[#This Row],[Earliest Lien Determ Dt]])-VALUE(TODAY())<=5,DataTbl[[#This Row],[Lien Determ Cd]]=\"?\"),\"Lien\",\"\"))","v":""},{"$f":"IF(DataTbl[[#This Row],[RO Assign Dt]]=\" /  /    \",\"\",IF(VALUE(TODAY()-VALUE(DataTbl[[#This Row],[RO Assign Dt]]))>545,\"Assign\",\"\"))","v":""},{"$f":"IF(DataTbl[[#This Row],[Initial Contact Due Dt]]=\" /  /    \",\"\",IF(VALUE(DataTbl[[#This Row],[Initial Contact Due Dt]])-VALUE(TODAY())<5,\"Init. Cont.\",\"\"))","v":""},{"$f":"IF(DataTbl[[#This Row],[Last Touch Dt]]=\" /  /    \",\"\",IF(VALUE(TODAY())-VALUE(DataTbl[[#This Row],[Last Touch Dt]])>30,\"No Touch\",\"\"))","v":""}]
["CHARLES A & JILL K CARPENTER"," /  /    "," /  /    "," /  /    ","2022-04-25"," /  /    ","2022-05-10","N/A",null,"2019-02-08",0,null,"No",0,{"$f":"IF(DataTbl[[#This Row],[Earliest CSED]]=\" /  /    \",\"\",IF(VALUE(DataTbl[[#This Row],[Earliest CSED]])-VALUE(TODAY())<365,\"CSED\",\"\"))","v":""},{"$f":"IF(DataTbl[[#This Row],[Earliest OI Due Date]]=\" /  /    \",\"\",IF(VALUE(DataTbl[[#This Row],[Earliest OI Due Date]])-VALUE(TODAY())<30,\"OI\",\"\"))","v":""},{"$f":"IF(DataTbl[[#This Row],[Follow Up Dt]]=\" /  /    \",\"\",IF(VALUE(DataTbl[[#This Row],[Follow Up Dt]])-VALUE(TODAY())<0,\"FU\",\"\"))","v":"FU"},{"$f":"IF(DataTbl[[#This Row],[Earliest Lien Determ Dt]]=\" /  /    \",\"\",IF(AND(VALUE(DataTbl[[#This Row],[Earliest Lien Determ Dt]])-VALUE(TODAY())<=5,DataTbl[[#This Row],[Lien Determ Cd]]=\"?\"),\"Lien\",\"\"))","v":""},{"$f":"IF(DataTbl[[#This Row],[RO Assign Dt]]=\" /  /    \",\"\",IF(VALUE(TODAY()-VALUE(DataTbl[[#This Row],[RO Assign Dt]]))>545,\"Assign\",\"\"))","v":"Assign"},{"$f":"IF(DataTbl[[#This Row],[Initial Contact Due Dt]]=\" /  /    \",\"\",IF(VALUE(DataTbl[[#This Row],[Initial Contact Due Dt]])-VALUE(TODAY())<5,\"Init. Cont.\",\"\"))","v":""},{"$f":"IF(DataTbl[[#This Row],[Last Touch Dt]]=\" /  /    \",\"\",IF(VALUE(TODAY())-VALUE(DataTbl[[#This Row],[Last Touch Dt]])>30,\"No Touch\",\"\"))","v":""}]
["MATLOCK MASONRY LLC"," /  /    "," /  /    ","2022-01-14"," /  /    "," /  /    ","2022-03-18","N/A",null,"2020-09-05",0,null,"No",0,{"$f":"IF(DataTbl[[#This Row],[Earliest CSED]]=\" /  /    \",\"\",IF(VALUE(DataTbl[[#This Row],[Earliest CSED]])-VALUE(TODAY())<365,\"CSED\",\"\"))","v":""},{"$f":"IF(DataTbl[[#This Row],[Earliest OI Due Date]]=\" /  /    \",\"\",IF(VALUE(DataTbl[[#This Row],[Earliest OI Due Date]])-VALUE(TODAY())<30,\"OI\",\"\"))","v":"OI"},{"$f":"IF(DataTbl[[#This Row],[Follow Up Dt]]=\" /  /    \",\"\",IF(VALUE(DataTbl[[#This Row],[Follow Up Dt]])-VALUE(TODAY())<0,\"FU\",\"\"))","v":""},{"$f":"IF(DataTbl[[#This Row],[Earliest Lien Determ Dt]]=\" /  /    \",\"\",IF(AND(VALUE(DataTbl[[#This Row],[Earliest Lien Determ Dt]])-VALUE(TODAY())<=5,DataTbl[[#This Row],[Lien Determ Cd]]=\"?\"),\"Lien\",\"\"))","v":""},{"$f":"IF(DataTbl[[#This Row],[RO Assign Dt]]=\" /  /    \",\"\",IF(VALUE(TODAY()-VALUE(DataTbl[[#This Row],[RO Assign Dt]]))>545,\"Assign\",\"\"))","v":"Assign"},{"$f":"IF(DataTbl[[#This Row],[Initial Contact Due Dt]]=\" /  /    \",\"\",IF(VALUE(DataTbl[[#This Row],[Initial Contact Due Dt]])-VALUE(TODAY())<5,\"Init. Cont.\",\"\"))","v":""},{"$f":"IF(DataTbl[[#This Row],[Last Touch Dt]]=\" /  /    \",\"\",IF(VALUE(TODAY())-VALUE(DataTbl[[#This Row],[Last Touch Dt]])>30,\"No Touch\",\"\"))","v":"No Touch"}]
["MICHAEL KOZEMZAK"," /  /    "," /  /    ","2022-06-10"," /  /    "," /  /    ","2019-12-11","N/A",null,"2019-11-20",0,"$","No",0,{"$f":"IF(DataTbl[[#This Row],[Earliest CSED]]=\" /  /    \",\"\",IF(VALUE(DataTbl[[#This Row],[Earliest CSED]])-VALUE(TODAY())<365,\"CSED\",\"\"))","v":""},{"$f":"IF(DataTbl[[#This Row],[Earliest OI Due Date]]=\" /  /    \",\"\",IF(VALUE(DataTbl[[#This Row],[Earliest OI Due Date]])-VALUE(TODAY())<30,\"OI\",\"\"))","v":"OI"},{"$f":"IF(DataTbl[[#This Row],[Follow Up Dt]]=\" /  /    \",\"\",IF(VALUE(DataTbl[[#This Row],[Follow Up Dt]])-VALUE(TODAY())<0,\"FU\",\"\"))","v":""},{"$f":"IF(DataTbl[[#This Row],[Earliest Lien Determ Dt]]=\" /  /    \",\"\",IF(AND(VALUE(DataTbl[[#This Row],[Earliest Lien Determ Dt]])-VALUE(TODAY())<=5,DataTbl[[#This Row],[Lien Determ Cd]]=\"?\"),\"Lien\",\"\"))","v":""},{"$f":"IF(DataTbl[[#This Row],[RO Assign Dt]]=\" /  /    \",\"\",IF(VALUE(TODAY()-VALUE(DataTbl[[#This Row],[RO Assign Dt]]))>545,\"Assign\",\"\"))","v":"Assign"},{"$f":"IF(DataTbl[[#This Row],[Initial Contact Due Dt]]=\" /  /    \",\"\",IF(VALUE(DataTbl[[#This Row],[Initial Contact Due Dt]])-VALUE(TODAY())<5,\"Init. Cont.\",\"\"))","v":""},{"$f":"IF(DataTbl[[#This Row],[Last Touch Dt]]=\" /  /    \",\"\",IF(VALUE(TODAY())-VALUE(DataTbl[[#This Row],[Last Touch Dt]])>30,\"No Touch\",\"\"))","v":"No Touch"}]
["TRACY BUCK MASONRY INC"," /  /    "," /  /    ","2022-06-05","2022-06-05"," /  /    ","2020-12-31","N/A",null,"2021-02-02",0,null,"No",0,{"$f":"IF(DataTbl[[#This Row],[Earliest CSED]]=\" /  /    \",\"\",IF(VALUE(DataTbl[[#This Row],[Earliest CSED]])-VALUE(TODAY())<365,\"CSED\",\"\"))","v":""},{"$f":"IF(DataTbl[[#This Row],[Earliest OI Due Date]]=\" /  /    \",\"\",IF(VALUE(DataTbl[[#This Row],[Earliest OI Due Date]])-VALUE(TODAY())<30,\"OI\",\"\"))","v":"OI"},{"$f":"IF(DataTbl[[#This Row],[Follow Up Dt]]=\" /  /    \",\"\",IF(VALUE(DataTbl[[#This Row],[Follow Up Dt]])-VALUE(TODAY())<0,\"FU\",\"\"))","v":""},{"$f":"IF(DataTbl[[#This Row],[Earliest Lien Determ Dt]]=\" /  /    \",\"\",IF(AND(VALUE(DataTbl[[#This Row],[Earliest Lien Determ Dt]])-VALUE(TODAY())<=5,DataTbl[[#This Row],[Lien Determ Cd]]=\"?\"),\"Lien\",\"\"))","v":""},{"$f":"IF(DataTbl[[#This Row],[RO Assign Dt]]=\" /  /    \",\"\",IF(VALUE(TODAY()-VALUE(DataTbl[[#This Row],[RO Assign Dt]]))>545,\"Assign\",\"\"))","v":""},{"$f":"IF(DataTbl[[#This Row],[Initial Contact Due Dt]]=\" /  /    \",\"\",IF(VALUE(DataTbl[[#This Row],[Initial Contact Due Dt]])-VALUE(TODAY())<5,\"Init. Cont.\",\"\"))","v":""},{"$f":"IF(DataTbl[[#This Row],[Last Touch Dt]]=\" /  /    \",\"\",IF(VALUE(TODAY())-VALUE(DataTbl[[#This Row],[Last Touch Dt]])>30,\"No Touch\",\"\"))","v":"No Touch"}]
["THERESA B BROWDER","2028-11-26"," /  /    "," /  /    ","2022-03-07"," /  /    ","2022-05-09","?","O","2020-01-27",201917,null,"No",0,{"$f":"IF(DataTbl[[#This Row],[Earliest CSED]]=\" /  /    \",\"\",IF(VALUE(DataTbl[[#This Row],[Earliest CSED]])-VALUE(TODAY())<365,\"CSED\",\"\"))","v":""},{"$f":"IF(DataTbl[[#This Row],[Earliest OI Due Date]]=\" /  /    \",\"\",IF(VALUE(DataTbl[[#This Row],[Earliest OI Due Date]])-VALUE(TODAY())<30,\"OI\",\"\"))","v":""},{"$f":"IF(DataTbl[[#This Row],[Follow Up Dt]]=\" /  /    \",\"\",IF(VALUE(DataTbl[[#This Row],[Follow Up Dt]])-VALUE(TODAY())<0,\"FU\",\"\"))","v":"FU"},{"$f":"IF(DataTbl[[#This Row],[Earliest Lien Determ Dt]]=\" /  /    \",\"\",IF(AND(VALUE(DataTbl[[#This Row],[Earliest Lien Determ Dt]])-VALUE(TODAY())<=5,DataTbl[[#This Row],[Lien Determ Cd]]=\"?\"),\"Lien\",\"\"))","v":""},{"$f":"IF(DataTbl[[#This Row],[RO Assign Dt]]=\" /  /    \",\"\",IF(VALUE(TODAY()-VALUE(DataTbl[[#This Row],[RO Assign Dt]]))>545,\"Assign\",\"\"))","v":"Assign"},{"$f":"IF(DataTbl[[#This Row],[Initial Contact Due Dt]]=\" /  /    \",\"\",IF(VALUE(DataTbl[[#This Row],[Initial Contact Due Dt]])-VALUE(TODAY())<5,\"Init. Cont.\",\"\"))","v":""},{"$f":"IF(DataTbl[[#This Row],[Last Touch Dt]]=\" /  /    \",\"\",IF(VALUE(TODAY())-VALUE(DataTbl[[#This Row],[Last Touch Dt]])>30,\"No Touch\",\"\"))","v":""}]
["KIE & ANDREA GARDNER","2028-10-08"," /  /    "," /  /    ","2022-05-27"," /  /    ","2022-04-14","Y","O","2021-08-12",201921,"$","No",0,{"$f":"IF(DataTbl[[#This Row],[Earliest CSED]]=\" /  /    \",\"\",IF(VALUE(DataTbl[[#This Row],[Earliest CSED]])-VALUE(TODAY())<365,\"CSED\",\"\"))","v":""},{"$f":"IF(DataTbl[[#This Row],[Earliest OI Due Date]]=\" /  /    \",\"\",IF(VALUE(DataTbl[[#This Row],[Earliest OI Due Date]])-VALUE(TODAY())<30,\"OI\",\"\"))","v":""},{"$f":"IF(DataTbl[[#This Row],[Follow Up Dt]]=\" /  /    \",\"\",IF(VALUE(DataTbl[[#This Row],[Follow Up Dt]])-VALUE(TODAY())<0,\"FU\",\"\"))","v":""},{"$f":"IF(DataTbl[[#This Row],[Earliest Lien Determ Dt]]=\" /  /    \",\"\",IF(AND(VALUE(DataTbl[[#This Row],[Earliest Lien Determ Dt]])-VALUE(TODAY())<=5,DataTbl[[#This Row],[Lien Determ Cd]]=\"?\"),\"Lien\",\"\"))","v":""},{"$f":"IF(DataTbl[[#This Row],[RO Assign Dt]]=\" /  /    \",\"\",IF(VALUE(TODAY()-VALUE(DataTbl[[#This Row],[RO Assign Dt]]))>545,\"Assign\",\"\"))","v":""},{"$f":"IF(DataTbl[[#This Row],[Initial Contact Due Dt]]=\" /  /    \",\"\",IF(VALUE(DataTbl[[#This Row],[Initial Contact Due Dt]])-VALUE(TODAY())<5,\"Init. Cont.\",\"\"))","v":""},{"$f":"IF(DataTbl[[#This Row],[Last Touch Dt]]=\" /  /    \",\"\",IF(VALUE(TODAY())-VALUE(DataTbl[[#This Row],[Last Touch Dt]])>30,\"No Touch\",\"\"))","v":"No Touch"}]
["THE LITIGATION GROUP PC","2028-10-15"," /  /    "," /  /    ","2022-04-04"," /  /    ","2022-04-26","Y","O","2021-10-28",201924,"$","No",0,{"$f":"IF(DataTbl[[#This Row],[Earliest CSED]]=\" /  /    \",\"\",IF(VALUE(DataTbl[[#This Row],[Earliest CSED]])-VALUE(TODAY())<365,\"CSED\",\"\"))","v":""},{"$f":"IF(DataTbl[[#This Row],[Earliest OI Due Date]]=\" /  /    \",\"\",IF(VALUE(DataTbl[[#This Row],[Earliest OI Due Date]])-VALUE(TODAY())<30,\"OI\",\"\"))","v":""},{"$f":"IF(DataTbl[[#This Row],[Follow Up Dt]]=\" /  /    \",\"\",IF(VALUE(DataTbl[[#This Row],[Follow Up Dt]])-VALUE(TODAY())<0,\"FU\",\"\"))","v":"FU"},{"$f":"IF(DataTbl[[#This Row],[Earliest Lien Determ Dt]]=\" /  /    \",\"\",IF(AND(VALUE(DataTbl[[#This Row],[Earliest Lien Determ Dt]])-VALUE(TODAY())<=5,DataTbl[[#This Row],[Lien Determ Cd]]=\"?\"),\"Lien\",\"\"))","v":""},{"$f":"IF(DataTbl[[#This Row],[RO Assign Dt]]=\" /  /    \",\"\",IF(VALUE(TODAY()-VALUE(DataTbl[[#This Row],[RO Assign Dt]]))>545,\"Assign\",\"\"))","v":""},{"$f":"IF(DataTbl[[#This Row],[Initial Contact Due Dt]]=\" /  /    \",\"\",IF(VALUE(DataTbl[[#This Row],[Initial Contact Due Dt]])-VALUE(TODAY())<5,\"Init. Cont.\",\"\"))","v":""},{"$f":"IF(DataTbl[[#This Row],[Last Touch Dt]]=\" /  /    \",\"\",IF(VALUE(TODAY())-VALUE(DataTbl[[#This Row],[Last Touch Dt]])>30,\"No Touch\",\"\"))","v":""}]
["ST FRANCIS HOTEL CORPORATION","2028-02-19"," /  /    "," /  /    "," /  /    "," /  /    ","2022-04-13","Y","O","2019-11-09",201945,null,"No",0,{"$f":"IF(DataTbl[[#This Row],[Earliest CSED]]=\" /  /    \",\"\",IF(VALUE(DataTbl[[#This Row],[Earliest CSED]])-VALUE(TODAY())<365,\"CSED\",\"\"))","v":""},{"$f":"IF(DataTbl[[#This Row],[Earliest OI Due Date]]=\" /  /    \",\"\",IF(VALUE(DataTbl[[#This Row],[Earliest OI Due Date]])-VALUE(TODAY())<30,\"OI\",\"\"))","v":""},{"$f":"IF(DataTbl[[#This Row],[Follow Up Dt]]=\" /  /    \",\"\",IF(VALUE(DataTbl[[#This Row],[Follow Up Dt]])-VALUE(TODAY())<0,\"FU\",\"\"))","v":""},{"$f":"IF(DataTbl[[#This Row],[Earliest Lien Determ Dt]]=\" /  /    \",\"\",IF(AND(VALUE(DataTbl[[#This Row],[Earliest Lien Determ Dt]])-VALUE(TODAY())<=5,DataTbl[[#This Row],[Lien Determ Cd]]=\"?\"),\"Lien\",\"\"))","v":""},{"$f":"IF(DataTbl[[#This Row],[RO Assign Dt]]=\" /  /    \",\"\",IF(VALUE(TODAY()-VALUE(DataTbl[[#This Row],[RO Assign Dt]]))>545,\"Assign\",\"\"))","v":"Assign"},{"$f":"IF(DataTbl[[#This Row],[Initial Contact Due Dt]]=\" /  /    \",\"\",IF(VALUE(DataTbl[[#This Row],[Initial Contact Due Dt]])-VALUE(TODAY())<5,\"Init. Cont.\",\"\"))","v":""},{"$f":"IF(DataTbl[[#This Row],[Last Touch Dt]]=\" /  /    \",\"\",IF(VALUE(TODAY())-VALUE(DataTbl[[#This Row],[Last Touch Dt]])>30,\"No Touch\",\"\"))","v":"No Touch"}]
["RALPH E CURTIS","2030-02-03"," /  /    "," /  /    "," /  /    "," /  /    ","2022-03-01","Y","O","2020-10-10",202041,null,"No",0,{"$f":"IF(DataTbl[[#This Row],[Earliest CSED]]=\" /  /    \",\"\",IF(VALUE(DataTbl[[#This Row],[Earliest CSED]])-VALUE(TODAY())<365,\"CSED\",\"\"))","v":""},{"$f":"IF(DataTbl[[#This Row],[Earliest OI Due Date]]=\" /  /    \",\"\",IF(VALUE(DataTbl[[#This Row],[Earliest OI Due Date]])-VALUE(TODAY())<30,\"OI\",\"\"))","v":""},{"$f":"IF(DataTbl[[#This Row],[Follow Up Dt]]=\" /  /    \",\"\",IF(VALUE(DataTbl[[#This Row],[Follow Up Dt]])-VALUE(TODAY())<0,\"FU\",\"\"))","v":""},{"$f":"IF(DataTbl[[#This Row],[Earliest Lien Determ Dt]]=\" /  /    \",\"\",IF(AND(VALUE(DataTbl[[#This Row],[Earliest Lien Determ Dt]])-VALUE(TODAY())<=5,DataTbl[[#This Row],[Lien Determ Cd]]=\"?\"),\"Lien\",\"\"))","v":""},{"$f":"IF(DataTbl[[#This Row],[RO Assign Dt]]=\" /  /    \",\"\",IF(VALUE(TODAY()-VALUE(DataTbl[[#This Row],[RO Assign Dt]]))>545,\"Assign\",\"\"))","v":"Assign"},{"$f":"IF(DataTbl[[#This Row],[Initial Contact Due Dt]]=\" /  /    \",\"\",IF(VALUE(DataTbl[[#This Row],[Initial Contact Due Dt]])-VALUE(TODAY())<5,\"Init. Cont.\",\"\"))","v":""},{"$f":"IF(DataTbl[[#This Row],[Last Touch Dt]]=\" /  /    \",\"\",IF(VALUE(TODAY())-VALUE(DataTbl[[#This Row],[Last Touch Dt]])>30,\"No Touch\",\"\"))","v":"No Touch"}]
["REX B MATLOCK","2027-08-21"," /  /    "," /  /    "," /  /    "," /  /    ","2022-03-18","N","O","2020-10-24",202043,null,"No",0,{"$f":"IF(DataTbl[[#This Row],[Earliest CSED]]=\" /  /    \",\"\",IF(VALUE(DataTbl[[#This Row],[Earliest CSED]])-VALUE(TODAY())<365,\"CSED\",\"\"))","v":""},{"$f":"IF(DataTbl[[#This Row],[Earliest OI Due Date]]=\" /  /    \",\"\",IF(VALUE(DataTbl[[#This Row],[Earliest OI Due Date]])-VALUE(TODAY())<30,\"OI\",\"\"))","v":""},{"$f":"IF(DataTbl[[#This Row],[Follow Up Dt]]=\" /  /    \",\"\",IF(VALUE(DataTbl[[#This Row],[Follow Up Dt]])-VALUE(TODAY())<0,\"FU\",\"\"))","v":""},{"$f":"IF(DataTbl[[#This Row],[Earliest Lien Determ Dt]]=\" /  /    \",\"\",IF(AND(VALUE(DataTbl[[#This Row],[Earliest Lien Determ Dt]])-VALUE(TODAY())<=5,DataTbl[[#This Row],[Lien Determ Cd]]=\"?\"),\"Lien\",\"\"))","v":""},{"$f":"IF(DataTbl[[#This Row],[RO Assign Dt]]=\" /  /    \",\"\",IF(VALUE(TODAY()-VALUE(DataTbl[[#This Row],[RO Assign Dt]]))>545,\"Assign\",\"\"))","v":"Assign"},{"$f":"IF(DataTbl[[#This Row],[Initial Contact Due Dt]]=\" /  /    \",\"\",IF(VALUE(DataTbl[[#This Row],[Initial Contact Due Dt]])-VALUE(TODAY())<5,\"Init. Cont.\",\"\"))","v":""},{"$f":"IF(DataTbl[[#This Row],[Last Touch Dt]]=\" /  /    \",\"\",IF(VALUE(TODAY())-VALUE(DataTbl[[#This Row],[Last Touch Dt]])>30,\"No Touch\",\"\"))","v":"No Touch"}]
["STUART F & VICKI L JAMES","2022-12-26"," /  /    "," /  /    ","2022-04-04"," /  /    ","2022-04-21","?","O","2021-08-02",202044,"$","No",null,{"$f":"IF(DataTbl[[#This Row],[Earliest CSED]]=\" /  /    \",\"\",IF(VALUE(DataTbl[[#This Row],[Earliest CSED]])-VALUE(TODAY())<365,\"CSED\",\"\"))","v":"CSED"},{"$f":"IF(DataTbl[[#This Row],[Earliest OI Due Date]]=\" /  /    \",\"\",IF(VALUE(DataTbl[[#This Row],[Earliest OI Due Date]])-VALUE(TODAY())<30,\"OI\",\"\"))","v":""},{"$f":"IF(DataTbl[[#This Row],[Follow Up Dt]]=\" /  /    \",\"\",IF(VALUE(DataTbl[[#This Row],[Follow Up Dt]])-VALUE(TODAY())<0,\"FU\",\"\"))","v":"FU"},{"$f":"IF(DataTbl[[#This Row],[Earliest Lien Determ Dt]]=\" /  /    \",\"\",IF(AND(VALUE(DataTbl[[#This Row],[Earliest Lien Determ Dt]])-VALUE(TODAY())<=5,DataTbl[[#This Row],[Lien Determ Cd]]=\"?\"),\"Lien\",\"\"))","v":""},{"$f":"IF(DataTbl[[#This Row],[RO Assign Dt]]=\" /  /    \",\"\",IF(VALUE(TODAY()-VALUE(DataTbl[[#This Row],[RO Assign Dt]]))>545,\"Assign\",\"\"))","v":""},{"$f":"IF(DataTbl[[#This Row],[Initial Contact Due Dt]]=\" /  /    \",\"\",IF(VALUE(DataTbl[[#This Row],[Initial Contact Due Dt]])-VALUE(TODAY())<5,\"Init. Cont.\",\"\"))","v":""},{"$f":"IF(DataTbl[[#This Row],[Last Touch Dt]]=\" /  /    \",\"\",IF(VALUE(TODAY())-VALUE(DataTbl[[#This Row],[Last Touch Dt]])>30,\"No Touch\",\"\"))","v":"No Touch"}]
["RONALD DOUGHTY"," /  /    "," /  /    "," /  /    ","2022-03-15"," /  /    ","2022-03-16","?","O","2021-03-15",202047,null,"No",0,{"$f":"IF(DataTbl[[#This Row],[Earliest CSED]]=\" /  /    \",\"\",IF(VALUE(DataTbl[[#This Row],[Earliest CSED]])-VALUE(TODAY())<365,\"CSED\",\"\"))","v":""},{"$f":"IF(DataTbl[[#This Row],[Earliest OI Due Date]]=\" /  /    \",\"\",IF(VALUE(DataTbl[[#This Row],[Earliest OI Due Date]])-VALUE(TODAY())<30,\"OI\",\"\"))","v":""},{"$f":"IF(DataTbl[[#This Row],[Follow Up Dt]]=\" /  /    \",\"\",IF(VALUE(DataTbl[[#This Row],[Follow Up Dt]])-VALUE(TODAY())<0,\"FU\",\"\"))","v":"FU"},{"$f":"IF(DataTbl[[#This Row],[Earliest Lien Determ Dt]]=\" /  /    \",\"\",IF(AND(VALUE(DataTbl[[#This Row],[Earliest Lien Determ Dt]])-VALUE(TODAY())<=5,DataTbl[[#This Row],[Lien Determ Cd]]=\"?\"),\"Lien\",\"\"))","v":""},{"$f":"IF(DataTbl[[#This Row],[RO Assign Dt]]=\" /  /    \",\"\",IF(VALUE(TODAY()-VALUE(DataTbl[[#This Row],[RO Assign Dt]]))>545,\"Assign\",\"\"))","v":""},{"$f":"IF(DataTbl[[#This Row],[Initial Contact Due Dt]]=\" /  /    \",\"\",IF(VALUE(DataTbl[[#This Row],[Initial Contact Due Dt]])-VALUE(TODAY())<5,\"Init. Cont.\",\"\"))","v":""},{"$f":"IF(DataTbl[[#This Row],[Last Touch Dt]]=\" /  /    \",\"\",IF(VALUE(TODAY())-VALUE(DataTbl[[#This Row],[Last Touch Dt]])>30,\"No Touch\",\"\"))","v":"No Touch"}]
["NITROUS ENDEAVORS INC","2026-08-08"," /  /    "," /  /    ","2022-04-26"," /  /    ","2022-05-19","Y","O","2020-12-12",202050,null,"No",0,{"$f":"IF(DataTbl[[#This Row],[Earliest CSED]]=\" /  /    \",\"\",IF(VALUE(DataTbl[[#This Row],[Earliest CSED]])-VALUE(TODAY())<365,\"CSED\",\"\"))","v":""},{"$f":"IF(DataTbl[[#This Row],[Earliest OI Due Date]]=\" /  /    \",\"\",IF(VALUE(DataTbl[[#This Row],[Earliest OI Due Date]])-VALUE(TODAY())<30,\"OI\",\"\"))","v":""},{"$f":"IF(DataTbl[[#This Row],[Follow Up Dt]]=\" /  /    \",\"\",IF(VALUE(DataTbl[[#This Row],[Follow Up Dt]])-VALUE(TODAY())<0,\"FU\",\"\"))","v":"FU"},{"$f":"IF(DataTbl[[#This Row],[Earliest Lien Determ Dt]]=\" /  /    \",\"\",IF(AND(VALUE(DataTbl[[#This Row],[Earliest Lien Determ Dt]])-VALUE(TODAY())<=5,DataTbl[[#This Row],[Lien Determ Cd]]=\"?\"),\"Lien\",\"\"))","v":""},{"$f":"IF(DataTbl[[#This Row],[RO Assign Dt]]=\" /  /    \",\"\",IF(VALUE(TODAY()-VALUE(DataTbl[[#This Row],[RO Assign Dt]]))>545,\"Assign\",\"\"))","v":""},{"$f":"IF(DataTbl[[#This Row],[Initial Contact Due Dt]]=\" /  /    \",\"\",IF(VALUE(DataTbl[[#This Row],[Initial Contact Due Dt]])-VALUE(TODAY())<5,\"Init. Cont.\",\"\"))","v":""},{"$f":"IF(DataTbl[[#This Row],[Last Touch Dt]]=\" /  /    \",\"\",IF(VALUE(TODAY())-VALUE(DataTbl[[#This Row],[Last Touch Dt]])>30,\"No Touch\",\"\"))","v":""}]
["TONY A MCCARRELL","2028-07-09"," /  /    "," /  /    "," /  /    "," /  /    ","2022-04-18","?","O","2020-12-19",202051,null,"No",0,{"$f":"IF(DataTbl[[#This Row],[Earliest CSED]]=\" /  /    \",\"\",IF(VALUE(DataTbl[[#This Row],[Earliest CSED]])-VALUE(TODAY())<365,\"CSED\",\"\"))","v":""},{"$f":"IF(DataTbl[[#This Row],[Earliest OI Due Date]]=\" /  /    \",\"\",IF(VALUE(DataTbl[[#This Row],[Earliest OI Due Date]])-VALUE(TODAY())<30,\"OI\",\"\"))","v":""},{"$f":"IF(DataTbl[[#This Row],[Follow Up Dt]]=\" /  /    \",\"\",IF(VALUE(DataTbl[[#This Row],[Follow Up Dt]])-VALUE(TODAY())<0,\"FU\",\"\"))","v":""},{"$f":"IF(DataTbl[[#This Row],[Earliest Lien Determ Dt]]=\" /  /    \",\"\",IF(AND(VALUE(DataTbl[[#This Row],[Earliest Lien Determ Dt]])-VALUE(TODAY())<=5,DataTbl[[#This Row],[Lien Determ Cd]]=\"?\"),\"Lien\",\"\"))","v":""},{"$f":"IF(DataTbl[[#This Row],[RO Assign Dt]]=\" /  /    \",\"\",IF(VALUE(TODAY()-VALUE(DataTbl[[#This Row],[RO Assign Dt]]))>545,\"Assign\",\"\"))","v":""},{"$f":"IF(DataTbl[[#This Row],[Initial Contact Due Dt]]=\" /  /    \",\"\",IF(VALUE(DataTbl[[#This Row],[Initial Contact Due Dt]])-VALUE(TODAY())<5,\"Init. Cont.\",\"\"))","v":""},{"$f":"IF(DataTbl[[#This Row],[Last Touch Dt]]=\" /  /    \",\"\",IF(VALUE(TODAY())-VALUE(DataTbl[[#This Row],[Last Touch Dt]])>30,\"No Touch\",\"\"))","v":"No Touch"}]
["CURTIS EQUIPMENT SALES LLC","2030-10-12"," /  /    "," /  /    "," /  /    "," /  /    ","2022-04-27","Y","O","2021-01-02",202051,"$","No",0,{"$f":"IF(DataTbl[[#This Row],[Earliest CSED]]=\" /  /    \",\"\",IF(VALUE(DataTbl[[#This Row],[Earliest CSED]])-VALUE(TODAY())<365,\"CSED\",\"\"))","v":""},{"$f":"IF(DataTbl[[#This Row],[Earliest OI Due Date]]=\" /  /    \",\"\",IF(VALUE(DataTbl[[#This Row],[Earliest OI Due Date]])-VALUE(TODAY())<30,\"OI\",\"\"))","v":""},{"$f":"IF(DataTbl[[#This Row],[Follow Up Dt]]=\" /  /    \",\"\",IF(VALUE(DataTbl[[#This Row],[Follow Up Dt]])-VALUE(TODAY())<0,\"FU\",\"\"))","v":""},{"$f":"IF(DataTbl[[#This Row],[Earliest Lien Determ Dt]]=\" /  /    \",\"\",IF(AND(VALUE(DataTbl[[#This Row],[Earliest Lien Determ Dt]])-VALUE(TODAY())<=5,DataTbl[[#This Row],[Lien Determ Cd]]=\"?\"),\"Lien\",\"\"))","v":""},{"$f":"IF(DataTbl[[#This Row],[RO Assign Dt]]=\" /  /    \",\"\",IF(VALUE(TODAY()-VALUE(DataTbl[[#This Row],[RO Assign Dt]]))>545,\"Assign\",\"\"))","v":""},{"$f":"IF(DataTbl[[#This Row],[Initial Contact Due Dt]]=\" /  /    \",\"\",IF(VALUE(DataTbl[[#This Row],[Initial Contact Due Dt]])-VALUE(TODAY())<5,\"Init. Cont.\",\"\"))","v":""},{"$f":"IF(DataTbl[[#This Row],[Last Touch Dt]]=\" /  /    \",\"\",IF(VALUE(TODAY())-VALUE(DataTbl[[#This Row],[Last Touch Dt]])>30,\"No Touch\",\"\"))","v":""}]
["HUDSON SHERATON CORPORATION LLC","2030-11-30"," /  /    "," /  /    ","2022-03-07"," /  /    ","2022-04-13","Y","O","2019-11-09",202052,"$","No",0,{"$f":"IF(DataTbl[[#This Row],[Earliest CSED]]=\" /  /    \",\"\",IF(VALUE(DataTbl[[#This Row],[Earliest CSED]])-VALUE(TODAY())<365,\"CSED\",\"\"))","v":""},{"$f":"IF(DataTbl[[#This Row],[Earliest OI Due Date]]=\" /  /    \",\"\",IF(VALUE(DataTbl[[#This Row],[Earliest OI Due Date]])-VALUE(TODAY())<30,\"OI\",\"\"))","v":""},{"$f":"IF(DataTbl[[#This Row],[Follow Up Dt]]=\" /  /    \",\"\",IF(VALUE(DataTbl[[#This Row],[Follow Up Dt]])-VALUE(TODAY())<0,\"FU\",\"\"))","v":"FU"},{"$f":"IF(DataTbl[[#This Row],[Earliest Lien Determ Dt]]=\" /  /    \",\"\",IF(AND(VALUE(DataTbl[[#This Row],[Earliest Lien Determ Dt]])-VALUE(TODAY())<=5,DataTbl[[#This Row],[Lien Determ Cd]]=\"?\"),\"Lien\",\"\"))","v":""},{"$f":"IF(DataTbl[[#This Row],[RO Assign Dt]]=\" /  /    \",\"\",IF(VALUE(TODAY()-VALUE(DataTbl[[#This Row],[RO Assign Dt]]))>545,\"Assign\",\"\"))","v":"Assign"},{"$f":"IF(DataTbl[[#This Row],[Initial Contact Due Dt]]=\" /  /    \",\"\",IF(VALUE(DataTbl[[#This Row],[Initial Contact Due Dt]])-VALUE(TODAY())<5,\"Init. Cont.\",\"\"))","v":""},{"$f":"IF(DataTbl[[#This Row],[Last Touch Dt]]=\" /  /    \",\"\",IF(VALUE(TODAY())-VALUE(DataTbl[[#This Row],[Last Touch Dt]])>30,\"No Touch\",\"\"))","v":"No Touch"}]
["A WALK OF ELEGANCE FLOORING &","2030-09-07"," /  /    "," /  /    ","2022-03-27"," /  /    ","2022-04-20","Y","P","2021-03-06",202109,"$","No",1,{"$f":"IF(DataTbl[[#This Row],[Earliest CSED]]=\" /  /    \",\"\",IF(VALUE(DataTbl[[#This Row],[Earliest CSED]])-VALUE(TODAY())<365,\"CSED\",\"\"))","v":""},{"$f":"IF(DataTbl[[#This Row],[Earliest OI Due Date]]=\" /  /    \",\"\",IF(VALUE(DataTbl[[#This Row],[Earliest OI Due Date]])-VALUE(TODAY())<30,\"OI\",\"\"))","v":""},{"$f":"IF(DataTbl[[#This Row],[Follow Up Dt]]=\" /  /    \",\"\",IF(VALUE(DataTbl[[#This Row],[Follow Up Dt]])-VALUE(TODAY())<0,\"FU\",\"\"))","v":"FU"},{"$f":"IF(DataTbl[[#This Row],[Earliest Lien Determ Dt]]=\" /  /    \",\"\",IF(AND(VALUE(DataTbl[[#This Row],[Earliest Lien Determ Dt]])-VALUE(TODAY())<=5,DataTbl[[#This Row],[Lien Determ Cd]]=\"?\"),\"Lien\",\"\"))","v":""},{"$f":"IF(DataTbl[[#This Row],[RO Assign Dt]]=\" /  /    \",\"\",IF(VALUE(TODAY()-VALUE(DataTbl[[#This Row],[RO Assign Dt]]))>545,\"Assign\",\"\"))","v":""},{"$f":"IF(DataTbl[[#This Row],[Initial Contact Due Dt]]=\" /  /    \",\"\",IF(VALUE(DataTbl[[#This Row],[Initial Contact Due Dt]])-VALUE(TODAY())<5,\"Init. Cont.\",\"\"))","v":""},{"$f":"IF(DataTbl[[#This Row],[Last Touch Dt]]=\" /  /    \",\"\",IF(VALUE(TODAY())-VALUE(DataTbl[[#This Row],[Last Touch Dt]])>30,\"No Touch\",\"\"))","v":"No Touch"}]
["HENDERSON & COMPANY","2030-11-23"," /  /    "," /  /    "," /  /    "," /  /    ","2022-05-11","?","P","2019-11-09",202113,null,"No",0,{"$f":"IF(DataTbl[[#This Row],[Earliest CSED]]=\" /  /    \",\"\",IF(VALUE(DataTbl[[#This Row],[Earliest CSED]])-VALUE(TODAY())<365,\"CSED\",\"\"))","v":""},{"$f":"IF(DataTbl[[#This Row],[Earliest OI Due Date]]=\" /  /    \",\"\",IF(VALUE(DataTbl[[#This Row],[Earliest OI Due Date]])-VALUE(TODAY())<30,\"OI\",\"\"))","v":""},{"$f":"IF(DataTbl[[#This Row],[Follow Up Dt]]=\" /  /    \",\"\",IF(VALUE(DataTbl[[#This Row],[Follow Up Dt]])-VALUE(TODAY())<0,\"FU\",\"\"))","v":""},{"$f":"IF(DataTbl[[#This Row],[Earliest Lien Determ Dt]]=\" /  /    \",\"\",IF(AND(VALUE(DataTbl[[#This Row],[Earliest Lien Determ Dt]])-VALUE(TODAY())<=5,DataTbl[[#This Row],[Lien Determ Cd]]=\"?\"),\"Lien\",\"\"))","v":""},{"$f":"IF(DataTbl[[#This Row],[RO Assign Dt]]=\" /  /    \",\"\",IF(VALUE(TODAY()-VALUE(DataTbl[[#This Row],[RO Assign Dt]]))>545,\"Assign\",\"\"))","v":"Assign"},{"$f":"IF(DataTbl[[#This Row],[Initial Contact Due Dt]]=\" /  /    \",\"\",IF(VALUE(DataTbl[[#This Row],[Initial Contact Due Dt]])-VALUE(TODAY())<5,\"Init. Cont.\",\"\"))","v":""},{"$f":"IF(DataTbl[[#This Row],[Last Touch Dt]]=\" /  /    \",\"\",IF(VALUE(TODAY())-VALUE(DataTbl[[#This Row],[Last Touch Dt]])>30,\"No Touch\",\"\"))","v":""}]
["JEFFERSON K & ROBERTA B HORNER","2025-02-23"," /  /    "," /  /    ","2022-06-13"," /  /    ","2022-05-20","N","P","2021-05-20",202119,null,"No",1,{"$f":"IF(DataTbl[[#This Row],[Earliest CSED]]=\" /  /    \",\"\",IF(VALUE(DataTbl[[#This Row],[Earliest CSED]])-VALUE(TODAY())<365,\"CSED\",\"\"))","v":""},{"$f":"IF(DataTbl[[#This Row],[Earliest OI Due Date]]=\" /  /    \",\"\",IF(VALUE(DataTbl[[#This Row],[Earliest OI Due Date]])-VALUE(TODAY())<30,\"OI\",\"\"))","v":""},{"$f":"IF(DataTbl[[#This Row],[Follow Up Dt]]=\" /  /    \",\"\",IF(VALUE(DataTbl[[#This Row],[Follow Up Dt]])-VALUE(TODAY())<0,\"FU\",\"\"))","v":""},{"$f":"IF(DataTbl[[#This Row],[Earliest Lien Determ Dt]]=\" /  /    \",\"\",IF(AND(VALUE(DataTbl[[#This Row],[Earliest Lien Determ Dt]])-VALUE(TODAY())<=5,DataTbl[[#This Row],[Lien Determ Cd]]=\"?\"),\"Lien\",\"\"))","v":""},{"$f":"IF(DataTbl[[#This Row],[RO Assign Dt]]=\" /  /    \",\"\",IF(VALUE(TODAY()-VALUE(DataTbl[[#This Row],[RO Assign Dt]]))>545,\"Assign\",\"\"))","v":""},{"$f":"IF(DataTbl[[#This Row],[Initial Contact Due Dt]]=\" /  /    \",\"\",IF(VALUE(DataTbl[[#This Row],[Initial Contact Due Dt]])-VALUE(TODAY())<5,\"Init. Cont.\",\"\"))","v":""},{"$f":"IF(DataTbl[[#This Row],[Last Touch Dt]]=\" /  /    \",\"\",IF(VALUE(TODAY())-VALUE(DataTbl[[#This Row],[Last Touch Dt]])>30,\"No Touch\",\"\"))","v":""}]
["JOHN P MORGAN","2025-03-02"," /  /    "," /  /    ","2022-03-18"," /  /    ","2022-04-20","Y","P","2021-05-22",202120,null,"No",0,{"$f":"IF(DataTbl[[#This Row],[Earliest CSED]]=\" /  /    \",\"\",IF(VALUE(DataTbl[[#This Row],[Earliest CSED]])-VALUE(TODAY())<365,\"CSED\",\"\"))","v":""},{"$f":"IF(DataTbl[[#This Row],[Earliest OI Due Date]]=\" /  /    \",\"\",IF(VALUE(DataTbl[[#This Row],[Earliest OI Due Date]])-VALUE(TODAY())<30,\"OI\",\"\"))","v":""},{"$f":"IF(DataTbl[[#This Row],[Follow Up Dt]]=\" /  /    \",\"\",IF(VALUE(DataTbl[[#This Row],[Follow Up Dt]])-VALUE(TODAY())<0,\"FU\",\"\"))","v":"FU"},{"$f":"IF(DataTbl[[#This Row],[Earliest Lien Determ Dt]]=\" /  /    \",\"\",IF(AND(VALUE(DataTbl[[#This Row],[Earliest Lien Determ Dt]])-VALUE(TODAY())<=5,DataTbl[[#This Row],[Lien Determ Cd]]=\"?\"),\"Lien\",\"\"))","v":""},{"$f":"IF(DataTbl[[#This Row],[RO Assign Dt]]=\" /  /    \",\"\",IF(VALUE(TODAY()-VALUE(DataTbl[[#This Row],[RO Assign Dt]]))>545,\"Assign\",\"\"))","v":""},{"$f":"IF(DataTbl[[#This Row],[Initial Contact Due Dt]]=\" /  /    \",\"\",IF(VALUE(DataTbl[[#This Row],[Initial Contact Due Dt]])-VALUE(TODAY())<5,\"Init. Cont.\",\"\"))","v":""},{"$f":"IF(DataTbl[[#This Row],[Last Touch Dt]]=\" /  /    \",\"\",IF(VALUE(TODAY())-VALUE(DataTbl[[#This Row],[Last Touch Dt]])>30,\"No Touch\",\"\"))","v":"No Touch"}]
["LESLEE P PHILLIPS","2030-04-29"," /  /    "," /  /    "," /  /    "," /  /    ","2022-03-28","?","P","2021-06-09",202122,null,"No",0,{"$f":"IF(DataTbl[[#This Row],[Earliest CSED]]=\" /  /    \",\"\",IF(VALUE(DataTbl[[#This Row],[Earliest CSED]])-VALUE(TODAY())<365,\"CSED\",\"\"))","v":""},{"$f":"IF(DataTbl[[#This Row],[Earliest OI Due Date]]=\" /  /    \",\"\",IF(VALUE(DataTbl[[#This Row],[Earliest OI Due Date]])-VALUE(TODAY())<30,\"OI\",\"\"))","v":""},{"$f":"IF(DataTbl[[#This Row],[Follow Up Dt]]=\" /  /    \",\"\",IF(VALUE(DataTbl[[#This Row],[Follow Up Dt]])-VALUE(TODAY())<0,\"FU\",\"\"))","v":""},{"$f":"IF(DataTbl[[#This Row],[Earliest Lien Determ Dt]]=\" /  /    \",\"\",IF(AND(VALUE(DataTbl[[#This Row],[Earliest Lien Determ Dt]])-VALUE(TODAY())<=5,DataTbl[[#This Row],[Lien Determ Cd]]=\"?\"),\"Lien\",\"\"))","v":""},{"$f":"IF(DataTbl[[#This Row],[RO Assign Dt]]=\" /  /    \",\"\",IF(VALUE(TODAY()-VALUE(DataTbl[[#This Row],[RO Assign Dt]]))>545,\"Assign\",\"\"))","v":""},{"$f":"IF(DataTbl[[#This Row],[Initial Contact Due Dt]]=\" /  /    \",\"\",IF(VALUE(DataTbl[[#This Row],[Initial Contact Due Dt]])-VALUE(TODAY())<5,\"Init. Cont.\",\"\"))","v":""},{"$f":"IF(DataTbl[[#This Row],[Last Touch Dt]]=\" /  /    \",\"\",IF(VALUE(TODAY())-VALUE(DataTbl[[#This Row],[Last Touch Dt]])>30,\"No Touch\",\"\"))","v":"No Touch"}]
["ARF ENTERPRISES LLC","2022-07-02"," /  /    "," /  /    ","2022-06-02"," /  /    ","2022-05-09","?","P","2021-08-14",202132,null,"No",0,{"$f":"IF(DataTbl[[#This Row],[Earliest CSED]]=\" /  /    \",\"\",IF(VALUE(DataTbl[[#This Row],[Earliest CSED]])-VALUE(TODAY())<365,\"CSED\",\"\"))","v":"CSED"},{"$f":"IF(DataTbl[[#This Row],[Earliest OI Due Date]]=\" /  /    \",\"\",IF(VALUE(DataTbl[[#This Row],[Earliest OI Due Date]])-VALUE(TODAY())<30,\"OI\",\"\"))","v":""},{"$f":"IF(DataTbl[[#This Row],[Follow Up Dt]]=\" /  /    \",\"\",IF(VALUE(DataTbl[[#This Row],[Follow Up Dt]])-VALUE(TODAY())<0,\"FU\",\"\"))","v":""},{"$f":"IF(DataTbl[[#This Row],[Earliest Lien Determ Dt]]=\" /  /    \",\"\",IF(AND(VALUE(DataTbl[[#This Row],[Earliest Lien Determ Dt]])-VALUE(TODAY())<=5,DataTbl[[#This Row],[Lien Determ Cd]]=\"?\"),\"Lien\",\"\"))","v":""},{"$f":"IF(DataTbl[[#This Row],[RO Assign Dt]]=\" /  /    \",\"\",IF(VALUE(TODAY()-VALUE(DataTbl[[#This Row],[RO Assign Dt]]))>545,\"Assign\",\"\"))","v":""},{"$f":"IF(DataTbl[[#This Row],[Initial Contact Due Dt]]=\" /  /    \",\"\",IF(VALUE(DataTbl[[#This Row],[Initial Contact Due Dt]])-VALUE(TODAY())<5,\"Init. Cont.\",\"\"))","v":""},{"$f":"IF(DataTbl[[#This Row],[Last Touch Dt]]=\" /  /    \",\"\",IF(VALUE(TODAY())-VALUE(DataTbl[[#This Row],[Last Touch Dt]])>30,\"No Touch\",\"\"))","v":""}]
["ANDREA R FERGUSON","2029-06-24"," /  /    "," /  /    "," /  /    "," /  /    ","2022-05-09","Y",null,"2021-08-28",202134,null,"No",0,{"$f":"IF(DataTbl[[#This Row],[Earliest CSED]]=\" /  /    \",\"\",IF(VALUE(DataTbl[[#This Row],[Earliest CSED]])-VALUE(TODAY())<365,\"CSED\",\"\"))","v":""},{"$f":"IF(DataTbl[[#This Row],[Earliest OI Due Date]]=\" /  /    \",\"\",IF(VALUE(DataTbl[[#This Row],[Earliest OI Due Date]])-VALUE(TODAY())<30,\"OI\",\"\"))","v":""},{"$f":"IF(DataTbl[[#This Row],[Follow Up Dt]]=\" /  /    \",\"\",IF(VALUE(DataTbl[[#This Row],[Follow Up Dt]])-VALUE(TODAY())<0,\"FU\",\"\"))","v":""},{"$f":"IF(DataTbl[[#This Row],[Earliest Lien Determ Dt]]=\" /  /    \",\"\",IF(AND(VALUE(DataTbl[[#This Row],[Earliest Lien Determ Dt]])-VALUE(TODAY())<=5,DataTbl[[#This Row],[Lien Determ Cd]]=\"?\"),\"Lien\",\"\"))","v":""},{"$f":"IF(DataTbl[[#This Row],[RO Assign Dt]]=\" /  /    \",\"\",IF(VALUE(TODAY()-VALUE(DataTbl[[#This Row],[RO Assign Dt]]))>545,\"Assign\",\"\"))","v":""},{"$f":"IF(DataTbl[[#This Row],[Initial Contact Due Dt]]=\" /  /    \",\"\",IF(VALUE(DataTbl[[#This Row],[Initial Contact Due Dt]])-VALUE(TODAY())<5,\"Init. Cont.\",\"\"))","v":""},{"$f":"IF(DataTbl[[#This Row],[Last Touch Dt]]=\" /  /    \",\"\",IF(VALUE(TODAY())-VALUE(DataTbl[[#This Row],[Last Touch Dt]])>30,\"No Touch\",\"\"))","v":""}]
["CLAYTON A MOORE","2030-03-16"," /  /    "," /  /    "," /  /    "," /  /    ","2022-03-28","?",null,"2021-10-04",202136,null,"No",0,{"$f":"IF(DataTbl[[#This Row],[Earliest CSED]]=\" /  /    \",\"\",IF(VALUE(DataTbl[[#This Row],[Earliest CSED]])-VALUE(TODAY())<365,\"CSED\",\"\"))","v":""},{"$f":"IF(DataTbl[[#This Row],[Earliest OI Due Date]]=\" /  /    \",\"\",IF(VALUE(DataTbl[[#This Row],[Earliest OI Due Date]])-VALUE(TODAY())<30,\"OI\",\"\"))","v":""},{"$f":"IF(DataTbl[[#This Row],[Follow Up Dt]]=\" /  /    \",\"\",IF(VALUE(DataTbl[[#This Row],[Follow Up Dt]])-VALUE(TODAY())<0,\"FU\",\"\"))","v":""},{"$f":"IF(DataTbl[[#This Row],[Earliest Lien Determ Dt]]=\" /  /    \",\"\",IF(AND(VALUE(DataTbl[[#This Row],[Earliest Lien Determ Dt]])-VALUE(TODAY())<=5,DataTbl[[#This Row],[Lien Determ Cd]]=\"?\"),\"Lien\",\"\"))","v":""},{"$f":"IF(DataTbl[[#This Row],[RO Assign Dt]]=\" /  /    \",\"\",IF(VALUE(TODAY()-VALUE(DataTbl[[#This Row],[RO Assign Dt]]))>545,\"Assign\",\"\"))","v":""},{"$f":"IF(DataTbl[[#This Row],[Initial Contact Due Dt]]=\" /  /    \",\"\",IF(VALUE(DataTbl[[#This Row],[Initial Contact Due Dt]])-VALUE(TODAY())<5,\"Init. Cont.\",\"\"))","v":""},{"$f":"IF(DataTbl[[#This Row],[Last Touch Dt]]=\" /  /    \",\"\",IF(VALUE(TODAY())-VALUE(DataTbl[[#This Row],[Last Touch Dt]])>30,\"No Touch\",\"\"))","v":"No Touch"}]
["1ST CLASS FABRICATION LLP","2030-11-30"," /  /    "," /  /    "," /  /    "," /  /    ","2022-04-28","Y",null,"2021-10-12",202136,null,"No",0,{"$f":"IF(DataTbl[[#This Row],[Earliest CSED]]=\" /  /    \",\"\",IF(VALUE(DataTbl[[#This Row],[Earliest CSED]])-VALUE(TODAY())<365,\"CSED\",\"\"))","v":""},{"$f":"IF(DataTbl[[#This Row],[Earliest OI Due Date]]=\" /  /    \",\"\",IF(VALUE(DataTbl[[#This Row],[Earliest OI Due Date]])-VALUE(TODAY())<30,\"OI\",\"\"))","v":""},{"$f":"IF(DataTbl[[#This Row],[Follow Up Dt]]=\" /  /    \",\"\",IF(VALUE(DataTbl[[#This Row],[Follow Up Dt]])-VALUE(TODAY())<0,\"FU\",\"\"))","v":""},{"$f":"IF(DataTbl[[#This Row],[Earliest Lien Determ Dt]]=\" /  /    \",\"\",IF(AND(VALUE(DataTbl[[#This Row],[Earliest Lien Determ Dt]])-VALUE(TODAY())<=5,DataTbl[[#This Row],[Lien Determ Cd]]=\"?\"),\"Lien\",\"\"))","v":""},{"$f":"IF(DataTbl[[#This Row],[RO Assign Dt]]=\" /  /    \",\"\",IF(VALUE(TODAY()-VALUE(DataTbl[[#This Row],[RO Assign Dt]]))>545,\"Assign\",\"\"))","v":""},{"$f":"IF(DataTbl[[#This Row],[Initial Contact Due Dt]]=\" /  /    \",\"\",IF(VALUE(DataTbl[[#This Row],[Initial Contact Due Dt]])-VALUE(TODAY())<5,\"Init. Cont.\",\"\"))","v":""},{"$f":"IF(DataTbl[[#This Row],[Last Touch Dt]]=\" /  /    \",\"\",IF(VALUE(TODAY())-VALUE(DataTbl[[#This Row],[Last Touch Dt]])>30,\"No Touch\",\"\"))","v":""}]
["TN VALLEY BUS LINES INC","2029-06-10"," /  /    "," /  /    ","2022-03-11"," /  /    ","2022-03-16","Y",null,"2021-09-30",202136,null,"No",0,{"$f":"IF(DataTbl[[#This Row],[Earliest CSED]]=\" /  /    \",\"\",IF(VALUE(DataTbl[[#This Row],[Earliest CSED]])-VALUE(TODAY())<365,\"CSED\",\"\"))","v":""},{"$f":"IF(DataTbl[[#This Row],[Earliest OI Due Date]]=\" /  /    \",\"\",IF(VALUE(DataTbl[[#This Row],[Earliest OI Due Date]])-VALUE(TODAY())<30,\"OI\",\"\"))","v":""},{"$f":"IF(DataTbl[[#This Row],[Follow Up Dt]]=\" /  /    \",\"\",IF(VALUE(DataTbl[[#This Row],[Follow Up Dt]])-VALUE(TODAY())<0,\"FU\",\"\"))","v":"FU"},{"$f":"IF(DataTbl[[#This Row],[Earliest Lien Determ Dt]]=\" /  /    \",\"\",IF(AND(VALUE(DataTbl[[#This Row],[Earliest Lien Determ Dt]])-VALUE(TODAY())<=5,DataTbl[[#This Row],[Lien Determ Cd]]=\"?\"),\"Lien\",\"\"))","v":""},{"$f":"IF(DataTbl[[#This Row],[RO Assign Dt]]=\" /  /    \",\"\",IF(VALUE(TODAY()-VALUE(DataTbl[[#This Row],[RO Assign Dt]]))>545,\"Assign\",\"\"))","v":""},{"$f":"IF(DataTbl[[#This Row],[Initial Contact Due Dt]]=\" /  /    \",\"\",IF(VALUE(DataTbl[[#This Row],[Initial Contact Due Dt]])-VALUE(TODAY())<5,\"Init. Cont.\",\"\"))","v":""},{"$f":"IF(DataTbl[[#This Row],[Last Touch Dt]]=\" /  /    \",\"\",IF(VALUE(TODAY())-VALUE(DataTbl[[#This Row],[Last Touch Dt]])>30,\"No Touch\",\"\"))","v":"No Touch"}]
["LAMBERTS SOUTHERN PIES & BAKE SHOP","2028-12-26"," /  /    "," /  /    ","2022-02-27"," /  /    ","2022-05-09","Y",null,"2021-10-12",202136,null,"No",0,{"$f":"IF(DataTbl[[#This Row],[Earliest CSED]]=\" /  /    \",\"\",IF(VALUE(DataTbl[[#This Row],[Earliest CSED]])-VALUE(TODAY())<365,\"CSED\",\"\"))","v":""},{"$f":"IF(DataTbl[[#This Row],[Earliest OI Due Date]]=\" /  /    \",\"\",IF(VALUE(DataTbl[[#This Row],[Earliest OI Due Date]])-VALUE(TODAY())<30,\"OI\",\"\"))","v":""},{"$f":"IF(DataTbl[[#This Row],[Follow Up Dt]]=\" /  /    \",\"\",IF(VALUE(DataTbl[[#This Row],[Follow Up Dt]])-VALUE(TODAY())<0,\"FU\",\"\"))","v":"FU"},{"$f":"IF(DataTbl[[#This Row],[Earliest Lien Determ Dt]]=\" /  /    \",\"\",IF(AND(VALUE(DataTbl[[#This Row],[Earliest Lien Determ Dt]])-VALUE(TODAY())<=5,DataTbl[[#This Row],[Lien Determ Cd]]=\"?\"),\"Lien\",\"\"))","v":""},{"$f":"IF(DataTbl[[#This Row],[RO Assign Dt]]=\" /  /    \",\"\",IF(VALUE(TODAY()-VALUE(DataTbl[[#This Row],[RO Assign Dt]]))>545,\"Assign\",\"\"))","v":""},{"$f":"IF(DataTbl[[#This Row],[Initial Contact Due Dt]]=\" /  /    \",\"\",IF(VALUE(DataTbl[[#This Row],[Initial Contact Due Dt]])-VALUE(TODAY())<5,\"Init. Cont.\",\"\"))","v":""},{"$f":"IF(DataTbl[[#This Row],[Last Touch Dt]]=\" /  /    \",\"\",IF(VALUE(TODAY())-VALUE(DataTbl[[#This Row],[Last Touch Dt]])>30,\"No Touch\",\"\"))","v":""}]
["GROVE STREET MARKET INC","2031-05-24"," /  /    "," /  /    ","2022-02-20"," /  /    ","2022-04-01","?",null,"2021-10-25",202138,null,"No",0,{"$f":"IF(DataTbl[[#This Row],[Earliest CSED]]=\" /  /    \",\"\",IF(VALUE(DataTbl[[#This Row],[Earliest CSED]])-VALUE(TODAY())<365,\"CSED\",\"\"))","v":""},{"$f":"IF(DataTbl[[#This Row],[Earliest OI Due Date]]=\" /  /    \",\"\",IF(VALUE(DataTbl[[#This Row],[Earliest OI Due Date]])-VALUE(TODAY())<30,\"OI\",\"\"))","v":""},{"$f":"IF(DataTbl[[#This Row],[Follow Up Dt]]=\" /  /    \",\"\",IF(VALUE(DataTbl[[#This Row],[Follow Up Dt]])-VALUE(TODAY())<0,\"FU\",\"\"))","v":"FU"},{"$f":"IF(DataTbl[[#This Row],[Earliest Lien Determ Dt]]=\" /  /    \",\"\",IF(AND(VALUE(DataTbl[[#This Row],[Earliest Lien Determ Dt]])-VALUE(TODAY())<=5,DataTbl[[#This Row],[Lien Determ Cd]]=\"?\"),\"Lien\",\"\"))","v":""},{"$f":"IF(DataTbl[[#This Row],[RO Assign Dt]]=\" /  /    \",\"\",IF(VALUE(TODAY()-VALUE(DataTbl[[#This Row],[RO Assign Dt]]))>545,\"Assign\",\"\"))","v":""},{"$f":"IF(DataTbl[[#This Row],[Initial Contact Due Dt]]=\" /  /    \",\"\",IF(VALUE(DataTbl[[#This Row],[Initial Contact Due Dt]])-VALUE(TODAY())<5,\"Init. Cont.\",\"\"))","v":""},{"$f":"IF(DataTbl[[#This Row],[Last Touch Dt]]=\" /  /    \",\"\",IF(VALUE(TODAY())-VALUE(DataTbl[[#This Row],[Last Touch Dt]])>30,\"No Touch\",\"\"))","v":"No Touch"}]
["VECTOR PRINTING LLC","2031-09-06"," /  /    "," /  /    ","2022-03-28"," /  /    ","2022-03-10","Y",null,"2020-09-12",202138,null,"No",0,{"$f":"IF(DataTbl[[#This Row],[Earliest CSED]]=\" /  /    \",\"\",IF(VALUE(DataTbl[[#This Row],[Earliest CSED]])-VALUE(TODAY())<365,\"CSED\",\"\"))","v":""},{"$f":"IF(DataTbl[[#This Row],[Earliest OI Due Date]]=\" /  /    \",\"\",IF(VALUE(DataTbl[[#This Row],[Earliest OI Due Date]])-VALUE(TODAY())<30,\"OI\",\"\"))","v":""},{"$f":"IF(DataTbl[[#This Row],[Follow Up Dt]]=\" /  /    \",\"\",IF(VALUE(DataTbl[[#This Row],[Follow Up Dt]])-VALUE(TODAY())<0,\"FU\",\"\"))","v":"FU"},{"$f":"IF(DataTbl[[#This Row],[Earliest Lien Determ Dt]]=\" /  /    \",\"\",IF(AND(VALUE(DataTbl[[#This Row],[Earliest Lien Determ Dt]])-VALUE(TODAY())<=5,DataTbl[[#This Row],[Lien Determ Cd]]=\"?\"),\"Lien\",\"\"))","v":""},{"$f":"IF(DataTbl[[#This Row],[RO Assign Dt]]=\" /  /    \",\"\",IF(VALUE(TODAY()-VALUE(DataTbl[[#This Row],[RO Assign Dt]]))>545,\"Assign\",\"\"))","v":"Assign"},{"$f":"IF(DataTbl[[#This Row],[Initial Contact Due Dt]]=\" /  /    \",\"\",IF(VALUE(DataTbl[[#This Row],[Initial Contact Due Dt]])-VALUE(TODAY())<5,\"Init. Cont.\",\"\"))","v":""},{"$f":"IF(DataTbl[[#This Row],[Last Touch Dt]]=\" /  /    \",\"\",IF(VALUE(TODAY())-VALUE(DataTbl[[#This Row],[Last Touch Dt]])>30,\"No Touch\",\"\"))","v":"No Touch"}]
["RICHARD L & MARY E PASS","2031-01-04"," /  /    "," /  /    "," /  /    "," /  /    ","2022-05-20","Y",null,"2021-11-04",202139,null,"No",0,{"$f":"IF(DataTbl[[#This Row],[Earliest CSED]]=\" /  /    \",\"\",IF(VALUE(DataTbl[[#This Row],[Earliest CSED]])-VALUE(TODAY())<365,\"CSED\",\"\"))","v":""},{"$f":"IF(DataTbl[[#This Row],[Earliest OI Due Date]]=\" /  /    \",\"\",IF(VALUE(DataTbl[[#This Row],[Earliest OI Due Date]])-VALUE(TODAY())<30,\"OI\",\"\"))","v":""},{"$f":"IF(DataTbl[[#This Row],[Follow Up Dt]]=\" /  /    \",\"\",IF(VALUE(DataTbl[[#This Row],[Follow Up Dt]])-VALUE(TODAY())<0,\"FU\",\"\"))","v":""},{"$f":"IF(DataTbl[[#This Row],[Earliest Lien Determ Dt]]=\" /  /    \",\"\",IF(AND(VALUE(DataTbl[[#This Row],[Earliest Lien Determ Dt]])-VALUE(TODAY())<=5,DataTbl[[#This Row],[Lien Determ Cd]]=\"?\"),\"Lien\",\"\"))","v":""},{"$f":"IF(DataTbl[[#This Row],[RO Assign Dt]]=\" /  /    \",\"\",IF(VALUE(TODAY()-VALUE(DataTbl[[#This Row],[RO Assign Dt]]))>545,\"Assign\",\"\"))","v":""},{"$f":"IF(DataTbl[[#This Row],[Initial Contact Due Dt]]=\" /  /    \",\"\",IF(VALUE(DataTbl[[#This Row],[Initial Contact Due Dt]])-VALUE(TODAY())<5,\"Init. Cont.\",\"\"))","v":""},{"$f":"IF(DataTbl[[#This Row],[Last Touch Dt]]=\" /  /    \",\"\",IF(VALUE(TODAY())-VALUE(DataTbl[[#This Row],[Last Touch Dt]])>30,\"No Touch\",\"\"))","v":""}]
["WE B INC","2031-07-12"," /  /    "," /  /    ","2022-05-01"," /  /    ","2022-04-22","?",null,"2021-10-09",202140,null,"No",0,{"$f":"IF(DataTbl[[#This Row],[Earliest CSED]]=\" /  /    \",\"\",IF(VALUE(DataTbl[[#This Row],[Earliest CSED]])-VALUE(TODAY())<365,\"CSED\",\"\"))","v":""},{"$f":"IF(DataTbl[[#This Row],[Earliest OI Due Date]]=\" /  /    \",\"\",IF(VALUE(DataTbl[[#This Row],[Earliest OI Due Date]])-VALUE(TODAY())<30,\"OI\",\"\"))","v":""},{"$f":"IF(DataTbl[[#This Row],[Follow Up Dt]]=\" /  /    \",\"\",IF(VALUE(DataTbl[[#This Row],[Follow Up Dt]])-VALUE(TODAY())<0,\"FU\",\"\"))","v":"FU"},{"$f":"IF(DataTbl[[#This Row],[Earliest Lien Determ Dt]]=\" /  /    \",\"\",IF(AND(VALUE(DataTbl[[#This Row],[Earliest Lien Determ Dt]])-VALUE(TODAY())<=5,DataTbl[[#This Row],[Lien Determ Cd]]=\"?\"),\"Lien\",\"\"))","v":""},{"$f":"IF(DataTbl[[#This Row],[RO Assign Dt]]=\" /  /    \",\"\",IF(VALUE(TODAY()-VALUE(DataTbl[[#This Row],[RO Assign Dt]]))>545,\"Assign\",\"\"))","v":""},{"$f":"IF(DataTbl[[#This Row],[Initial Contact Due Dt]]=\" /  /    \",\"\",IF(VALUE(DataTbl[[#This Row],[Initial Contact Due Dt]])-VALUE(TODAY())<5,\"Init. Cont.\",\"\"))","v":""},{"$f":"IF(DataTbl[[#This Row],[Last Touch Dt]]=\" /  /    \",\"\",IF(VALUE(TODAY())-VALUE(DataTbl[[#This Row],[Last Touch Dt]])>30,\"No Touch\",\"\"))","v":"No Touch"}]
["DWK LIFE SCIENCES LLC"," /  /    "," /  /    "," /  /    ","2022-05-16"," /  /    ","2022-05-17","N/A",null,"2021-11-06",202144,null,"No",0,{"$f":"IF(DataTbl[[#This Row],[Earliest CSED]]=\" /  /    \",\"\",IF(VALUE(DataTbl[[#This Row],[Earliest CSED]])-VALUE(TODAY())<365,\"CSED\",\"\"))","v":""},{"$f":"IF(DataTbl[[#This Row],[Earliest OI Due Date]]=\" /  /    \",\"\",IF(VALUE(DataTbl[[#This Row],[Earliest OI Due Date]])-VALUE(TODAY())<30,\"OI\",\"\"))","v":""},{"$f":"IF(DataTbl[[#This Row],[Follow Up Dt]]=\" /  /    \",\"\",IF(VALUE(DataTbl[[#This Row],[Follow Up Dt]])-VALUE(TODAY())<0,\"FU\",\"\"))","v":"FU"},{"$f":"IF(DataTbl[[#This Row],[Earliest Lien Determ Dt]]=\" /  /    \",\"\",IF(AND(VALUE(DataTbl[[#This Row],[Earliest Lien Determ Dt]])-VALUE(TODAY())<=5,DataTbl[[#This Row],[Lien Determ Cd]]=\"?\"),\"Lien\",\"\"))","v":""},{"$f":"IF(DataTbl[[#This Row],[RO Assign Dt]]=\" /  /    \",\"\",IF(VALUE(TODAY()-VALUE(DataTbl[[#This Row],[RO Assign Dt]]))>545,\"Assign\",\"\"))","v":""},{"$f":"IF(DataTbl[[#This Row],[Initial Contact Due Dt]]=\" /  /    \",\"\",IF(VALUE(DataTbl[[#This Row],[Initial Contact Due Dt]])-VALUE(TODAY())<5,\"Init. Cont.\",\"\"))","v":""},{"$f":"IF(DataTbl[[#This Row],[Last Touch Dt]]=\" /  /    \",\"\",IF(VALUE(TODAY())-VALUE(DataTbl[[#This Row],[Last Touch Dt]])>30,\"No Touch\",\"\"))","v":""}]
["ASHLEY J FINNEY","2031-06-07"," /  /    "," /  /    ","2022-05-16"," /  /    ","2022-05-12","?",null,"2021-12-04",202148,null,"No",0,{"$f":"IF(DataTbl[[#This Row],[Earliest CSED]]=\" /  /    \",\"\",IF(VALUE(DataTbl[[#This Row],[Earliest CSED]])-VALUE(TODAY())<365,\"CSED\",\"\"))","v":""},{"$f":"IF(DataTbl[[#This Row],[Earliest OI Due Date]]=\" /  /    \",\"\",IF(VALUE(DataTbl[[#This Row],[Earliest OI Due Date]])-VALUE(TODAY())<30,\"OI\",\"\"))","v":""},{"$f":"IF(DataTbl[[#This Row],[Follow Up Dt]]=\" /  /    \",\"\",IF(VALUE(DataTbl[[#This Row],[Follow Up Dt]])-VALUE(TODAY())<0,\"FU\",\"\"))","v":"FU"},{"$f":"IF(DataTbl[[#This Row],[Earliest Lien Determ Dt]]=\" /  /    \",\"\",IF(AND(VALUE(DataTbl[[#This Row],[Earliest Lien Determ Dt]])-VALUE(TODAY())<=5,DataTbl[[#This Row],[Lien Determ Cd]]=\"?\"),\"Lien\",\"\"))","v":""},{"$f":"IF(DataTbl[[#This Row],[RO Assign Dt]]=\" /  /    \",\"\",IF(VALUE(TODAY()-VALUE(DataTbl[[#This Row],[RO Assign Dt]]))>545,\"Assign\",\"\"))","v":""},{"$f":"IF(DataTbl[[#This Row],[Initial Contact Due Dt]]=\" /  /    \",\"\",IF(VALUE(DataTbl[[#This Row],[Initial Contact Due Dt]])-VALUE(TODAY())<5,\"Init. Cont.\",\"\"))","v":""},{"$f":"IF(DataTbl[[#This Row],[Last Touch Dt]]=\" /  /    \",\"\",IF(VALUE(TODAY())-VALUE(DataTbl[[#This Row],[Last Touch Dt]])>30,\"No Touch\",\"\"))","v":""}]
["PAUL T HART","2029-01-07"," /  /    "," /  /    ","2022-05-18"," /  /    ","2022-05-20","Y",null,"2021-12-11",202149,null,"No",0,{"$f":"IF(DataTbl[[#This Row],[Earliest CSED]]=\" /  /    \",\"\",IF(VALUE(DataTbl[[#This Row],[Earliest CSED]])-VALUE(TODAY())<365,\"CSED\",\"\"))","v":""},{"$f":"IF(DataTbl[[#This Row],[Earliest OI Due Date]]=\" /  /    \",\"\",IF(VALUE(DataTbl[[#This Row],[Earliest OI Due Date]])-VALUE(TODAY())<30,\"OI\",\"\"))","v":""},{"$f":"IF(DataTbl[[#This Row],[Follow Up Dt]]=\" /  /    \",\"\",IF(VALUE(DataTbl[[#This Row],[Follow Up Dt]])-VALUE(TODAY())<0,\"FU\",\"\"))","v":"FU"},{"$f":"IF(DataTbl[[#This Row],[Earliest Lien Determ Dt]]=\" /  /    \",\"\",IF(AND(VALUE(DataTbl[[#This Row],[Earliest Lien Determ Dt]])-VALUE(TODAY())<=5,DataTbl[[#This Row],[Lien Determ Cd]]=\"?\"),\"Lien\",\"\"))","v":""},{"$f":"IF(DataTbl[[#This Row],[RO Assign Dt]]=\" /  /    \",\"\",IF(VALUE(TODAY()-VALUE(DataTbl[[#This Row],[RO Assign Dt]]))>545,\"Assign\",\"\"))","v":""},{"$f":"IF(DataTbl[[#This Row],[Initial Contact Due Dt]]=\" /  /    \",\"\",IF(VALUE(DataTbl[[#This Row],[Initial Contact Due Dt]])-VALUE(TODAY())<5,\"Init. Cont.\",\"\"))","v":""},{"$f":"IF(DataTbl[[#This Row],[Last Touch Dt]]=\" /  /    \",\"\",IF(VALUE(TODAY())-VALUE(DataTbl[[#This Row],[Last Touch Dt]])>30,\"No Touch\",\"\"))","v":""}]
["TIMOTHY P SCHULKE","2027-05-22"," /  /    "," /  /    ","2022-05-09"," /  /    ","2022-05-20","Y",null,"2021-12-11",202149,null,"No",0,{"$f":"IF(DataTbl[[#This Row],[Earliest CSED]]=\" /  /    \",\"\",IF(VALUE(DataTbl[[#This Row],[Earliest CSED]])-VALUE(TODAY())<365,\"CSED\",\"\"))","v":""},{"$f":"IF(DataTbl[[#This Row],[Earliest OI Due Date]]=\" /  /    \",\"\",IF(VALUE(DataTbl[[#This Row],[Earliest OI Due Date]])-VALUE(TODAY())<30,\"OI\",\"\"))","v":""},{"$f":"IF(DataTbl[[#This Row],[Follow Up Dt]]=\" /  /    \",\"\",IF(VALUE(DataTbl[[#This Row],[Follow Up Dt]])-VALUE(TODAY())<0,\"FU\",\"\"))","v":"FU"},{"$f":"IF(DataTbl[[#This Row],[Earliest Lien Determ Dt]]=\" /  /    \",\"\",IF(AND(VALUE(DataTbl[[#This Row],[Earliest Lien Determ Dt]])-VALUE(TODAY())<=5,DataTbl[[#This Row],[Lien Determ Cd]]=\"?\"),\"Lien\",\"\"))","v":""},{"$f":"IF(DataTbl[[#This Row],[RO Assign Dt]]=\" /  /    \",\"\",IF(VALUE(TODAY()-VALUE(DataTbl[[#This Row],[RO Assign Dt]]))>545,\"Assign\",\"\"))","v":""},{"$f":"IF(DataTbl[[#This Row],[Initial Contact Due Dt]]=\" /  /    \",\"\",IF(VALUE(DataTbl[[#This Row],[Initial Contact Due Dt]])-VALUE(TODAY())<5,\"Init. Cont.\",\"\"))","v":""},{"$f":"IF(DataTbl[[#This Row],[Last Touch Dt]]=\" /  /    \",\"\",IF(VALUE(TODAY())-VALUE(DataTbl[[#This Row],[Last Touch Dt]])>30,\"No Touch\",\"\"))","v":""}]
["CHATTANOOGA SECURITY GROUP","2031-05-24"," /  /    "," /  /    ","2022-03-26"," /  /    ","2022-05-23","R",null,"2022-01-22",202203,null,"No",0,{"$f":"IF(DataTbl[[#This Row],[Earliest CSED]]=\" /  /    \",\"\",IF(VALUE(DataTbl[[#This Row],[Earliest CSED]])-VALUE(TODAY())<365,\"CSED\",\"\"))","v":""},{"$f":"IF(DataTbl[[#This Row],[Earliest OI Due Date]]=\" /  /    \",\"\",IF(VALUE(DataTbl[[#This Row],[Earliest OI Due Date]])-VALUE(TODAY())<30,\"OI\",\"\"))","v":""},{"$f":"IF(DataTbl[[#This Row],[Follow Up Dt]]=\" /  /    \",\"\",IF(VALUE(DataTbl[[#This Row],[Follow Up Dt]])-VALUE(TODAY())<0,\"FU\",\"\"))","v":"FU"},{"$f":"IF(DataTbl[[#This Row],[Earliest Lien Determ Dt]]=\" /  /    \",\"\",IF(AND(VALUE(DataTbl[[#This Row],[Earliest Lien Determ Dt]])-VALUE(TODAY())<=5,DataTbl[[#This Row],[Lien Determ Cd]]=\"?\"),\"Lien\",\"\"))","v":""},{"$f":"IF(DataTbl[[#This Row],[RO Assign Dt]]=\" /  /    \",\"\",IF(VALUE(TODAY()-VALUE(DataTbl[[#This Row],[RO Assign Dt]]))>545,\"Assign\",\"\"))","v":""},{"$f":"IF(DataTbl[[#This Row],[Initial Contact Due Dt]]=\" /  /    \",\"\",IF(VALUE(DataTbl[[#This Row],[Initial Contact Due Dt]])-VALUE(TODAY())<5,\"Init. Cont.\",\"\"))","v":""},{"$f":"IF(DataTbl[[#This Row],[Last Touch Dt]]=\" /  /    \",\"\",IF(VALUE(TODAY())-VALUE(DataTbl[[#This Row],[Last Touch Dt]])>30,\"No Touch\",\"\"))","v":""}]
["HOLSOMBACK PAINT & BODY SHOP & USED","2031-10-25"," /  /    "," /  /    ","2022-06-06"," /  /    ","2022-05-12","Y",null,"2022-01-22",202203,null,"No",0,{"$f":"IF(DataTbl[[#This Row],[Earliest CSED]]=\" /  /    \",\"\",IF(VALUE(DataTbl[[#This Row],[Earliest CSED]])-VALUE(TODAY())<365,\"CSED\",\"\"))","v":""},{"$f":"IF(DataTbl[[#This Row],[Earliest OI Due Date]]=\" /  /    \",\"\",IF(VALUE(DataTbl[[#This Row],[Earliest OI Due Date]])-VALUE(TODAY())<30,\"OI\",\"\"))","v":""},{"$f":"IF(DataTbl[[#This Row],[Follow Up Dt]]=\" /  /    \",\"\",IF(VALUE(DataTbl[[#This Row],[Follow Up Dt]])-VALUE(TODAY())<0,\"FU\",\"\"))","v":""},{"$f":"IF(DataTbl[[#This Row],[Earliest Lien Determ Dt]]=\" /  /    \",\"\",IF(AND(VALUE(DataTbl[[#This Row],[Earliest Lien Determ Dt]])-VALUE(TODAY())<=5,DataTbl[[#This Row],[Lien Determ Cd]]=\"?\"),\"Lien\",\"\"))","v":""},{"$f":"IF(DataTbl[[#This Row],[RO Assign Dt]]=\" /  /    \",\"\",IF(VALUE(TODAY()-VALUE(DataTbl[[#This Row],[RO Assign Dt]]))>545,\"Assign\",\"\"))","v":""},{"$f":"IF(DataTbl[[#This Row],[Initial Contact Due Dt]]=\" /  /    \",\"\",IF(VALUE(DataTbl[[#This Row],[Initial Contact Due Dt]])-VALUE(TODAY())<5,\"Init. Cont.\",\"\"))","v":""},{"$f":"IF(DataTbl[[#This Row],[Last Touch Dt]]=\" /  /    \",\"\",IF(VALUE(TODAY())-VALUE(DataTbl[[#This Row],[Last Touch Dt]])>30,\"No Touch\",\"\"))","v":""}]
["LOYS LAWNCARE & LANDSCAPING LLC","2031-10-11"," /  /    "," /  /    ","2022-04-29"," /  /    ","2022-05-10","Y",null,"2022-01-22",202203,null,"No",0,{"$f":"IF(DataTbl[[#This Row],[Earliest CSED]]=\" /  /    \",\"\",IF(VALUE(DataTbl[[#This Row],[Earliest CSED]])-VALUE(TODAY())<365,\"CSED\",\"\"))","v":""},{"$f":"IF(DataTbl[[#This Row],[Earliest OI Due Date]]=\" /  /    \",\"\",IF(VALUE(DataTbl[[#This Row],[Earliest OI Due Date]])-VALUE(TODAY())<30,\"OI\",\"\"))","v":""},{"$f":"IF(DataTbl[[#This Row],[Follow Up Dt]]=\" /  /    \",\"\",IF(VALUE(DataTbl[[#This Row],[Follow Up Dt]])-VALUE(TODAY())<0,\"FU\",\"\"))","v":"FU"},{"$f":"IF(DataTbl[[#This Row],[Earliest Lien Determ Dt]]=\" /  /    \",\"\",IF(AND(VALUE(DataTbl[[#This Row],[Earliest Lien Determ Dt]])-VALUE(TODAY())<=5,DataTbl[[#This Row],[Lien Determ Cd]]=\"?\"),\"Lien\",\"\"))","v":""},{"$f":"IF(DataTbl[[#This Row],[RO Assign Dt]]=\" /  /    \",\"\",IF(VALUE(TODAY()-VALUE(DataTbl[[#This Row],[RO Assign Dt]]))>545,\"Assign\",\"\"))","v":""},{"$f":"IF(DataTbl[[#This Row],[Initial Contact Due Dt]]=\" /  /    \",\"\",IF(VALUE(DataTbl[[#This Row],[Initial Contact Due Dt]])-VALUE(TODAY())<5,\"Init. Cont.\",\"\"))","v":""},{"$f":"IF(DataTbl[[#This Row],[Last Touch Dt]]=\" /  /    \",\"\",IF(VALUE(TODAY())-VALUE(DataTbl[[#This Row],[Last Touch Dt]])>30,\"No Touch\",\"\"))","v":""}]
["BRANDON HOWARD","2030-11-09"," /  /    "," /  /    ","2022-05-16"," /  /    ","2022-05-16","Y",null,"2022-01-22",202203,null,"No",0,{"$f":"IF(DataTbl[[#This Row],[Earliest CSED]]=\" /  /    \",\"\",IF(VALUE(DataTbl[[#This Row],[Earliest CSED]])-VALUE(TODAY())<365,\"CSED\",\"\"))","v":""},{"$f":"IF(DataTbl[[#This Row],[Earliest OI Due Date]]=\" /  /    \",\"\",IF(VALUE(DataTbl[[#This Row],[Earliest OI Due Date]])-VALUE(TODAY())<30,\"OI\",\"\"))","v":""},{"$f":"IF(DataTbl[[#This Row],[Follow Up Dt]]=\" /  /    \",\"\",IF(VALUE(DataTbl[[#This Row],[Follow Up Dt]])-VALUE(TODAY())<0,\"FU\",\"\"))","v":"FU"},{"$f":"IF(DataTbl[[#This Row],[Earliest Lien Determ Dt]]=\" /  /    \",\"\",IF(AND(VALUE(DataTbl[[#This Row],[Earliest Lien Determ Dt]])-VALUE(TODAY())<=5,DataTbl[[#This Row],[Lien Determ Cd]]=\"?\"),\"Lien\",\"\"))","v":""},{"$f":"IF(DataTbl[[#This Row],[RO Assign Dt]]=\" /  /    \",\"\",IF(VALUE(TODAY()-VALUE(DataTbl[[#This Row],[RO Assign Dt]]))>545,\"Assign\",\"\"))","v":""},{"$f":"IF(DataTbl[[#This Row],[Initial Contact Due Dt]]=\" /  /    \",\"\",IF(VALUE(DataTbl[[#This Row],[Initial Contact Due Dt]])-VALUE(TODAY())<5,\"Init. Cont.\",\"\"))","v":""},{"$f":"IF(DataTbl[[#This Row],[Last Touch Dt]]=\" /  /    \",\"\",IF(VALUE(TODAY())-VALUE(DataTbl[[#This Row],[Last Touch Dt]])>30,\"No Touch\",\"\"))","v":""}]
["ARROW ENGINE MACHINE INC","2030-11-30"," /  /    "," /  /    ","2022-05-27"," /  /    ","2022-05-12","Y",null,"2022-01-29",202204,null,"No",0,{"$f":"IF(DataTbl[[#This Row],[Earliest CSED]]=\" /  /    \",\"\",IF(VALUE(DataTbl[[#This Row],[Earliest CSED]])-VALUE(TODAY())<365,\"CSED\",\"\"))","v":""},{"$f":"IF(DataTbl[[#This Row],[Earliest OI Due Date]]=\" /  /    \",\"\",IF(VALUE(DataTbl[[#This Row],[Earliest OI Due Date]])-VALUE(TODAY())<30,\"OI\",\"\"))","v":""},{"$f":"IF(DataTbl[[#This Row],[Follow Up Dt]]=\" /  /    \",\"\",IF(VALUE(DataTbl[[#This Row],[Follow Up Dt]])-VALUE(TODAY())<0,\"FU\",\"\"))","v":""},{"$f":"IF(DataTbl[[#This Row],[Earliest Lien Determ Dt]]=\" /  /    \",\"\",IF(AND(VALUE(DataTbl[[#This Row],[Earliest Lien Determ Dt]])-VALUE(TODAY())<=5,DataTbl[[#This Row],[Lien Determ Cd]]=\"?\"),\"Lien\",\"\"))","v":""},{"$f":"IF(DataTbl[[#This Row],[RO Assign Dt]]=\" /  /    \",\"\",IF(VALUE(TODAY()-VALUE(DataTbl[[#This Row],[RO Assign Dt]]))>545,\"Assign\",\"\"))","v":""},{"$f":"IF(DataTbl[[#This Row],[Initial Contact Due Dt]]=\" /  /    \",\"\",IF(VALUE(DataTbl[[#This Row],[Initial Contact Due Dt]])-VALUE(TODAY())<5,\"Init. Cont.\",\"\"))","v":""},{"$f":"IF(DataTbl[[#This Row],[Last Touch Dt]]=\" /  /    \",\"\",IF(VALUE(TODAY())-VALUE(DataTbl[[#This Row],[Last Touch Dt]])>30,\"No Touch\",\"\"))","v":""}]
["LAMBERTS FLOORING INC","2031-10-04"," /  /    "," /  /    "," /  /    "," /  /    ","2022-05-09","R",null,"2022-01-29",202204,null,"No",0,{"$f":"IF(DataTbl[[#This Row],[Earliest CSED]]=\" /  /    \",\"\",IF(VALUE(DataTbl[[#This Row],[Earliest CSED]])-VALUE(TODAY())<365,\"CSED\",\"\"))","v":""},{"$f":"IF(DataTbl[[#This Row],[Earliest OI Due Date]]=\" /  /    \",\"\",IF(VALUE(DataTbl[[#This Row],[Earliest OI Due Date]])-VALUE(TODAY())<30,\"OI\",\"\"))","v":""},{"$f":"IF(DataTbl[[#This Row],[Follow Up Dt]]=\" /  /    \",\"\",IF(VALUE(DataTbl[[#This Row],[Follow Up Dt]])-VALUE(TODAY())<0,\"FU\",\"\"))","v":""},{"$f":"IF(DataTbl[[#This Row],[Earliest Lien Determ Dt]]=\" /  /    \",\"\",IF(AND(VALUE(DataTbl[[#This Row],[Earliest Lien Determ Dt]])-VALUE(TODAY())<=5,DataTbl[[#This Row],[Lien Determ Cd]]=\"?\"),\"Lien\",\"\"))","v":""},{"$f":"IF(DataTbl[[#This Row],[RO Assign Dt]]=\" /  /    \",\"\",IF(VALUE(TODAY()-VALUE(DataTbl[[#This Row],[RO Assign Dt]]))>545,\"Assign\",\"\"))","v":""},{"$f":"IF(DataTbl[[#This Row],[Initial Contact Due Dt]]=\" /  /    \",\"\",IF(VALUE(DataTbl[[#This Row],[Initial Contact Due Dt]])-VALUE(TODAY())<5,\"Init. Cont.\",\"\"))","v":""},{"$f":"IF(DataTbl[[#This Row],[Last Touch Dt]]=\" /  /    \",\"\",IF(VALUE(TODAY())-VALUE(DataTbl[[#This Row],[Last Touch Dt]])>30,\"No Touch\",\"\"))","v":""}]
["LAMBERTS SOUTHERN PIES INC","2031-11-22"," /  /    "," /  /    ","2022-05-23"," /  /    ","2022-05-09","R",null,"2022-01-29",202204,null,"No",0,{"$f":"IF(DataTbl[[#This Row],[Earliest CSED]]=\" /  /    \",\"\",IF(VALUE(DataTbl[[#This Row],[Earliest CSED]])-VALUE(TODAY())<365,\"CSED\",\"\"))","v":""},{"$f":"IF(DataTbl[[#This Row],[Earliest OI Due Date]]=\" /  /    \",\"\",IF(VALUE(DataTbl[[#This Row],[Earliest OI Due Date]])-VALUE(TODAY())<30,\"OI\",\"\"))","v":""},{"$f":"IF(DataTbl[[#This Row],[Follow Up Dt]]=\" /  /    \",\"\",IF(VALUE(DataTbl[[#This Row],[Follow Up Dt]])-VALUE(TODAY())<0,\"FU\",\"\"))","v":""},{"$f":"IF(DataTbl[[#This Row],[Earliest Lien Determ Dt]]=\" /  /    \",\"\",IF(AND(VALUE(DataTbl[[#This Row],[Earliest Lien Determ Dt]])-VALUE(TODAY())<=5,DataTbl[[#This Row],[Lien Determ Cd]]=\"?\"),\"Lien\",\"\"))","v":""},{"$f":"IF(DataTbl[[#This Row],[RO Assign Dt]]=\" /  /    \",\"\",IF(VALUE(TODAY()-VALUE(DataTbl[[#This Row],[RO Assign Dt]]))>545,\"Assign\",\"\"))","v":""},{"$f":"IF(DataTbl[[#This Row],[Initial Contact Due Dt]]=\" /  /    \",\"\",IF(VALUE(DataTbl[[#This Row],[Initial Contact Due Dt]])-VALUE(TODAY())<5,\"Init. Cont.\",\"\"))","v":""},{"$f":"IF(DataTbl[[#This Row],[Last Touch Dt]]=\" /  /    \",\"\",IF(VALUE(TODAY())-VALUE(DataTbl[[#This Row],[Last Touch Dt]])>30,\"No Touch\",\"\"))","v":""}]
["CHARLES T LAMBERT","2029-05-27"," /  /    "," /  /    "," /  /    "," /  /    ","2022-05-09","R",null,"2022-01-29",202204,null,"No",0,{"$f":"IF(DataTbl[[#This Row],[Earliest CSED]]=\" /  /    \",\"\",IF(VALUE(DataTbl[[#This Row],[Earliest CSED]])-VALUE(TODAY())<365,\"CSED\",\"\"))","v":""},{"$f":"IF(DataTbl[[#This Row],[Earliest OI Due Date]]=\" /  /    \",\"\",IF(VALUE(DataTbl[[#This Row],[Earliest OI Due Date]])-VALUE(TODAY())<30,\"OI\",\"\"))","v":""},{"$f":"IF(DataTbl[[#This Row],[Follow Up Dt]]=\" /  /    \",\"\",IF(VALUE(DataTbl[[#This Row],[Follow Up Dt]])-VALUE(TODAY())<0,\"FU\",\"\"))","v":""},{"$f":"IF(DataTbl[[#This Row],[Earliest Lien Determ Dt]]=\" /  /    \",\"\",IF(AND(VALUE(DataTbl[[#This Row],[Earliest Lien Determ Dt]])-VALUE(TODAY())<=5,DataTbl[[#This Row],[Lien Determ Cd]]=\"?\"),\"Lien\",\"\"))","v":""},{"$f":"IF(DataTbl[[#This Row],[RO Assign Dt]]=\" /  /    \",\"\",IF(VALUE(TODAY()-VALUE(DataTbl[[#This Row],[RO Assign Dt]]))>545,\"Assign\",\"\"))","v":""},{"$f":"IF(DataTbl[[#This Row],[Initial Contact Due Dt]]=\" /  /    \",\"\",IF(VALUE(DataTbl[[#This Row],[Initial Contact Due Dt]])-VALUE(TODAY())<5,\"Init. Cont.\",\"\"))","v":""},{"$f":"IF(DataTbl[[#This Row],[Last Touch Dt]]=\" /  /    \",\"\",IF(VALUE(TODAY())-VALUE(DataTbl[[#This Row],[Last Touch Dt]])>30,\"No Touch\",\"\"))","v":""}]
["CHARLES T LAMBERT","2031-08-23"," /  /    "," /  /    "," /  /    "," /  /    ","2022-05-09","R",null,"2022-01-29",202204,null,"No",0,{"$f":"IF(DataTbl[[#This Row],[Earliest CSED]]=\" /  /    \",\"\",IF(VALUE(DataTbl[[#This Row],[Earliest CSED]])-VALUE(TODAY())<365,\"CSED\",\"\"))","v":""},{"$f":"IF(DataTbl[[#This Row],[Earliest OI Due Date]]=\" /  /    \",\"\",IF(VALUE(DataTbl[[#This Row],[Earliest OI Due Date]])-VALUE(TODAY())<30,\"OI\",\"\"))","v":""},{"$f":"IF(DataTbl[[#This Row],[Follow Up Dt]]=\" /  /    \",\"\",IF(VALUE(DataTbl[[#This Row],[Follow Up Dt]])-VALUE(TODAY())<0,\"FU\",\"\"))","v":""},{"$f":"IF(DataTbl[[#This Row],[Earliest Lien Determ Dt]]=\" /  /    \",\"\",IF(AND(VALUE(DataTbl[[#This Row],[Earliest Lien Determ Dt]])-VALUE(TODAY())<=5,DataTbl[[#This Row],[Lien Determ Cd]]=\"?\"),\"Lien\",\"\"))","v":""},{"$f":"IF(DataTbl[[#This Row],[RO Assign Dt]]=\" /  /    \",\"\",IF(VALUE(TODAY()-VALUE(DataTbl[[#This Row],[RO Assign Dt]]))>545,\"Assign\",\"\"))","v":""},{"$f":"IF(DataTbl[[#This Row],[Initial Contact Due Dt]]=\" /  /    \",\"\",IF(VALUE(DataTbl[[#This Row],[Initial Contact Due Dt]])-VALUE(TODAY())<5,\"Init. Cont.\",\"\"))","v":""},{"$f":"IF(DataTbl[[#This Row],[Last Touch Dt]]=\" /  /    \",\"\",IF(VALUE(TODAY())-VALUE(DataTbl[[#This Row],[Last Touch Dt]])>30,\"No Touch\",\"\"))","v":""}]
["TOMMY & JILL PARHAM","2029-06-24"," /  /    "," /  /    ","2022-04-04"," /  /    ","2022-05-20","Y",null,"2021-06-01",202205,null,"No",null,{"$f":"IF(DataTbl[[#This Row],[Earliest CSED]]=\" /  /    \",\"\",IF(VALUE(DataTbl[[#This Row],[Earliest CSED]])-VALUE(TODAY())<365,\"CSED\",\"\"))","v":""},{"$f":"IF(DataTbl[[#This Row],[Earliest OI Due Date]]=\" /  /    \",\"\",IF(VALUE(DataTbl[[#This Row],[Earliest OI Due Date]])-VALUE(TODAY())<30,\"OI\",\"\"))","v":""},{"$f":"IF(DataTbl[[#This Row],[Follow Up Dt]]=\" /  /    \",\"\",IF(VALUE(DataTbl[[#This Row],[Follow Up Dt]])-VALUE(TODAY())<0,\"FU\",\"\"))","v":"FU"},{"$f":"IF(DataTbl[[#This Row],[Earliest Lien Determ Dt]]=\" /  /    \",\"\",IF(AND(VALUE(DataTbl[[#This Row],[Earliest Lien Determ Dt]])-VALUE(TODAY())<=5,DataTbl[[#This Row],[Lien Determ Cd]]=\"?\"),\"Lien\",\"\"))","v":""},{"$f":"IF(DataTbl[[#This Row],[RO Assign Dt]]=\" /  /    \",\"\",IF(VALUE(TODAY()-VALUE(DataTbl[[#This Row],[RO Assign Dt]]))>545,\"Assign\",\"\"))","v":""},{"$f":"IF(DataTbl[[#This Row],[Initial Contact Due Dt]]=\" /  /    \",\"\",IF(VALUE(DataTbl[[#This Row],[Initial Contact Due Dt]])-VALUE(TODAY())<5,\"Init. Cont.\",\"\"))","v":""},{"$f":"IF(DataTbl[[#This Row],[Last Touch Dt]]=\" /  /    \",\"\",IF(VALUE(TODAY())-VALUE(DataTbl[[#This Row],[Last Touch Dt]])>30,\"No Touch\",\"\"))","v":""}]
["CURTIS LEON GREENE","2027-02-16"," /  /    "," /  /    ","2022-04-30"," /  /    ","2022-05-23","Y",null,"2022-02-12",202206,null,"No",0,{"$f":"IF(DataTbl[[#This Row],[Earliest CSED]]=\" /  /    \",\"\",IF(VALUE(DataTbl[[#This Row],[Earliest CSED]])-VALUE(TODAY())<365,\"CSED\",\"\"))","v":""},{"$f":"IF(DataTbl[[#This Row],[Earliest OI Due Date]]=\" /  /    \",\"\",IF(VALUE(DataTbl[[#This Row],[Earliest OI Due Date]])-VALUE(TODAY())<30,\"OI\",\"\"))","v":""},{"$f":"IF(DataTbl[[#This Row],[Follow Up Dt]]=\" /  /    \",\"\",IF(VALUE(DataTbl[[#This Row],[Follow Up Dt]])-VALUE(TODAY())<0,\"FU\",\"\"))","v":"FU"},{"$f":"IF(DataTbl[[#This Row],[Earliest Lien Determ Dt]]=\" /  /    \",\"\",IF(AND(VALUE(DataTbl[[#This Row],[Earliest Lien Determ Dt]])-VALUE(TODAY())<=5,DataTbl[[#This Row],[Lien Determ Cd]]=\"?\"),\"Lien\",\"\"))","v":""},{"$f":"IF(DataTbl[[#This Row],[RO Assign Dt]]=\" /  /    \",\"\",IF(VALUE(TODAY()-VALUE(DataTbl[[#This Row],[RO Assign Dt]]))>545,\"Assign\",\"\"))","v":""},{"$f":"IF(DataTbl[[#This Row],[Initial Contact Due Dt]]=\" /  /    \",\"\",IF(VALUE(DataTbl[[#This Row],[Initial Contact Due Dt]])-VALUE(TODAY())<5,\"Init. Cont.\",\"\"))","v":""},{"$f":"IF(DataTbl[[#This Row],[Last Touch Dt]]=\" /  /    \",\"\",IF(VALUE(TODAY())-VALUE(DataTbl[[#This Row],[Last Touch Dt]])>30,\"No Touch\",\"\"))","v":""}]
["SPRINGWATER DENTAL INSTITUTE LLC","2030-03-30"," /  /    "," /  /    ","2022-05-31","2022-05-26","2022-04-15","R",null,"2022-04-11",202208,null,"No",0,{"$f":"IF(DataTbl[[#This Row],[Earliest CSED]]=\" /  /    \",\"\",IF(VALUE(DataTbl[[#This Row],[Earliest CSED]])-VALUE(TODAY())<365,\"CSED\",\"\"))","v":""},{"$f":"IF(DataTbl[[#This Row],[Earliest OI Due Date]]=\" /  /    \",\"\",IF(VALUE(DataTbl[[#This Row],[Earliest OI Due Date]])-VALUE(TODAY())<30,\"OI\",\"\"))","v":""},{"$f":"IF(DataTbl[[#This Row],[Follow Up Dt]]=\" /  /    \",\"\",IF(VALUE(DataTbl[[#This Row],[Follow Up Dt]])-VALUE(TODAY())<0,\"FU\",\"\"))","v":""},{"$f":"IF(DataTbl[[#This Row],[Earliest Lien Determ Dt]]=\" /  /    \",\"\",IF(AND(VALUE(DataTbl[[#This Row],[Earliest Lien Determ Dt]])-VALUE(TODAY())<=5,DataTbl[[#This Row],[Lien Determ Cd]]=\"?\"),\"Lien\",\"\"))","v":""},{"$f":"IF(DataTbl[[#This Row],[RO Assign Dt]]=\" /  /    \",\"\",IF(VALUE(TODAY()-VALUE(DataTbl[[#This Row],[RO Assign Dt]]))>545,\"Assign\",\"\"))","v":""},{"$f":"IF(DataTbl[[#This Row],[Initial Contact Due Dt]]=\" /  /    \",\"\",IF(VALUE(DataTbl[[#This Row],[Initial Contact Due Dt]])-VALUE(TODAY())<5,\"Init. Cont.\",\"\"))","v":"Init. Cont."},{"$f":"IF(DataTbl[[#This Row],[Last Touch Dt]]=\" /  /    \",\"\",IF(VALUE(TODAY())-VALUE(DataTbl[[#This Row],[Last Touch Dt]])>30,\"No Touch\",\"\"))","v":"No Touch"}]
["PAUL A & JOANN R KING","2027-12-20"," /  /    "," /  /    ","2022-05-27"," /  /    ","2022-05-09","?",null,"2022-02-26",202208,null,"No",0,{"$f":"IF(DataTbl[[#This Row],[Earliest CSED]]=\" /  /    \",\"\",IF(VALUE(DataTbl[[#This Row],[Earliest CSED]])-VALUE(TODAY())<365,\"CSED\",\"\"))","v":""},{"$f":"IF(DataTbl[[#This Row],[Earliest OI Due Date]]=\" /  /    \",\"\",IF(VALUE(DataTbl[[#This Row],[Earliest OI Due Date]])-VALUE(TODAY())<30,\"OI\",\"\"))","v":""},{"$f":"IF(DataTbl[[#This Row],[Follow Up Dt]]=\" /  /    \",\"\",IF(VALUE(DataTbl[[#This Row],[Follow Up Dt]])-VALUE(TODAY())<0,\"FU\",\"\"))","v":""},{"$f":"IF(DataTbl[[#This Row],[Earliest Lien Determ Dt]]=\" /  /    \",\"\",IF(AND(VALUE(DataTbl[[#This Row],[Earliest Lien Determ Dt]])-VALUE(TODAY())<=5,DataTbl[[#This Row],[Lien Determ Cd]]=\"?\"),\"Lien\",\"\"))","v":""},{"$f":"IF(DataTbl[[#This Row],[RO Assign Dt]]=\" /  /    \",\"\",IF(VALUE(TODAY()-VALUE(DataTbl[[#This Row],[RO Assign Dt]]))>545,\"Assign\",\"\"))","v":""},{"$f":"IF(DataTbl[[#This Row],[Initial Contact Due Dt]]=\" /  /    \",\"\",IF(VALUE(DataTbl[[#This Row],[Initial Contact Due Dt]])-VALUE(TODAY())<5,\"Init. Cont.\",\"\"))","v":""},{"$f":"IF(DataTbl[[#This Row],[Last Touch Dt]]=\" /  /    \",\"\",IF(VALUE(TODAY())-VALUE(DataTbl[[#This Row],[Last Touch Dt]])>30,\"No Touch\",\"\"))","v":""}]
["JAMES W MILLER","2032-01-03"," /  /    "," /  /    "," /  /    "," /  /    ","2022-05-19","Y",null,"2022-02-26",202208,null,"No",0,{"$f":"IF(DataTbl[[#This Row],[Earliest CSED]]=\" /  /    \",\"\",IF(VALUE(DataTbl[[#This Row],[Earliest CSED]])-VALUE(TODAY())<365,\"CSED\",\"\"))","v":""},{"$f":"IF(DataTbl[[#This Row],[Earliest OI Due Date]]=\" /  /    \",\"\",IF(VALUE(DataTbl[[#This Row],[Earliest OI Due Date]])-VALUE(TODAY())<30,\"OI\",\"\"))","v":""},{"$f":"IF(DataTbl[[#This Row],[Follow Up Dt]]=\" /  /    \",\"\",IF(VALUE(DataTbl[[#This Row],[Follow Up Dt]])-VALUE(TODAY())<0,\"FU\",\"\"))","v":""},{"$f":"IF(DataTbl[[#This Row],[Earliest Lien Determ Dt]]=\" /  /    \",\"\",IF(AND(VALUE(DataTbl[[#This Row],[Earliest Lien Determ Dt]])-VALUE(TODAY())<=5,DataTbl[[#This Row],[Lien Determ Cd]]=\"?\"),\"Lien\",\"\"))","v":""},{"$f":"IF(DataTbl[[#This Row],[RO Assign Dt]]=\" /  /    \",\"\",IF(VALUE(TODAY()-VALUE(DataTbl[[#This Row],[RO Assign Dt]]))>545,\"Assign\",\"\"))","v":""},{"$f":"IF(DataTbl[[#This Row],[Initial Contact Due Dt]]=\" /  /    \",\"\",IF(VALUE(DataTbl[[#This Row],[Initial Contact Due Dt]])-VALUE(TODAY())<5,\"Init. Cont.\",\"\"))","v":""},{"$f":"IF(DataTbl[[#This Row],[Last Touch Dt]]=\" /  /    \",\"\",IF(VALUE(TODAY())-VALUE(DataTbl[[#This Row],[Last Touch Dt]])>30,\"No Touch\",\"\"))","v":""}]
["CYMER-DAYTON LLC","2031-08-02"," /  /    "," /  /    ","2022-06-07"," /  /    ","2022-05-03","N",null,"2022-03-05",202209,null,"No",0,{"$f":"IF(DataTbl[[#This Row],[Earliest CSED]]=\" /  /    \",\"\",IF(VALUE(DataTbl[[#This Row],[Earliest CSED]])-VALUE(TODAY())<365,\"CSED\",\"\"))","v":""},{"$f":"IF(DataTbl[[#This Row],[Earliest OI Due Date]]=\" /  /    \",\"\",IF(VALUE(DataTbl[[#This Row],[Earliest OI Due Date]])-VALUE(TODAY())<30,\"OI\",\"\"))","v":""},{"$f":"IF(DataTbl[[#This Row],[Follow Up Dt]]=\" /  /    \",\"\",IF(VALUE(DataTbl[[#This Row],[Follow Up Dt]])-VALUE(TODAY())<0,\"FU\",\"\"))","v":""},{"$f":"IF(DataTbl[[#This Row],[Earliest Lien Determ Dt]]=\" /  /    \",\"\",IF(AND(VALUE(DataTbl[[#This Row],[Earliest Lien Determ Dt]])-VALUE(TODAY())<=5,DataTbl[[#This Row],[Lien Determ Cd]]=\"?\"),\"Lien\",\"\"))","v":""},{"$f":"IF(DataTbl[[#This Row],[RO Assign Dt]]=\" /  /    \",\"\",IF(VALUE(TODAY()-VALUE(DataTbl[[#This Row],[RO Assign Dt]]))>545,\"Assign\",\"\"))","v":""},{"$f":"IF(DataTbl[[#This Row],[Initial Contact Due Dt]]=\" /  /    \",\"\",IF(VALUE(DataTbl[[#This Row],[Initial Contact Due Dt]])-VALUE(TODAY())<5,\"Init. Cont.\",\"\"))","v":""},{"$f":"IF(DataTbl[[#This Row],[Last Touch Dt]]=\" /  /    \",\"\",IF(VALUE(TODAY())-VALUE(DataTbl[[#This Row],[Last Touch Dt]])>30,\"No Touch\",\"\"))","v":""}]
["RHEA MEDICAL CENTER","2030-11-30"," /  /    "," /  /    ","2022-05-13"," /  /    ","2022-05-11","?",null,"2022-03-05",202209,null,"No",0,{"$f":"IF(DataTbl[[#This Row],[Earliest CSED]]=\" /  /    \",\"\",IF(VALUE(DataTbl[[#This Row],[Earliest CSED]])-VALUE(TODAY())<365,\"CSED\",\"\"))","v":""},{"$f":"IF(DataTbl[[#This Row],[Earliest OI Due Date]]=\" /  /    \",\"\",IF(VALUE(DataTbl[[#This Row],[Earliest OI Due Date]])-VALUE(TODAY())<30,\"OI\",\"\"))","v":""},{"$f":"IF(DataTbl[[#This Row],[Follow Up Dt]]=\" /  /    \",\"\",IF(VALUE(DataTbl[[#This Row],[Follow Up Dt]])-VALUE(TODAY())<0,\"FU\",\"\"))","v":"FU"},{"$f":"IF(DataTbl[[#This Row],[Earliest Lien Determ Dt]]=\" /  /    \",\"\",IF(AND(VALUE(DataTbl[[#This Row],[Earliest Lien Determ Dt]])-VALUE(TODAY())<=5,DataTbl[[#This Row],[Lien Determ Cd]]=\"?\"),\"Lien\",\"\"))","v":""},{"$f":"IF(DataTbl[[#This Row],[RO Assign Dt]]=\" /  /    \",\"\",IF(VALUE(TODAY()-VALUE(DataTbl[[#This Row],[RO Assign Dt]]))>545,\"Assign\",\"\"))","v":""},{"$f":"IF(DataTbl[[#This Row],[Initial Contact Due Dt]]=\" /  /    \",\"\",IF(VALUE(DataTbl[[#This Row],[Initial Contact Due Dt]])-VALUE(TODAY())<5,\"Init. Cont.\",\"\"))","v":""},{"$f":"IF(DataTbl[[#This Row],[Last Touch Dt]]=\" /  /    \",\"\",IF(VALUE(TODAY())-VALUE(DataTbl[[#This Row],[Last Touch Dt]])>30,\"No Touch\",\"\"))","v":""}]
["POUR HOUSE BISTRO","2032-01-03"," /  /    "," /  /    "," /  /    ","2022-04-21","2022-05-02","?",null,"2022-03-05",202209,null,"No",0,{"$f":"IF(DataTbl[[#This Row],[Earliest CSED]]=\" /  /    \",\"\",IF(VALUE(DataTbl[[#This Row],[Earliest CSED]])-VALUE(TODAY())<365,\"CSED\",\"\"))","v":""},{"$f":"IF(DataTbl[[#This Row],[Earliest OI Due Date]]=\" /  /    \",\"\",IF(VALUE(DataTbl[[#This Row],[Earliest OI Due Date]])-VALUE(TODAY())<30,\"OI\",\"\"))","v":""},{"$f":"IF(DataTbl[[#This Row],[Follow Up Dt]]=\" /  /    \",\"\",IF(VALUE(DataTbl[[#This Row],[Follow Up Dt]])-VALUE(TODAY())<0,\"FU\",\"\"))","v":""},{"$f":"IF(DataTbl[[#This Row],[Earliest Lien Determ Dt]]=\" /  /    \",\"\",IF(AND(VALUE(DataTbl[[#This Row],[Earliest Lien Determ Dt]])-VALUE(TODAY())<=5,DataTbl[[#This Row],[Lien Determ Cd]]=\"?\"),\"Lien\",\"\"))","v":""},{"$f":"IF(DataTbl[[#This Row],[RO Assign Dt]]=\" /  /    \",\"\",IF(VALUE(TODAY()-VALUE(DataTbl[[#This Row],[RO Assign Dt]]))>545,\"Assign\",\"\"))","v":""},{"$f":"IF(DataTbl[[#This Row],[Initial Contact Due Dt]]=\" /  /    \",\"\",IF(VALUE(DataTbl[[#This Row],[Initial Contact Due Dt]])-VALUE(TODAY())<5,\"Init. Cont.\",\"\"))","v":"Init. Cont."},{"$f":"IF(DataTbl[[#This Row],[Last Touch Dt]]=\" /  /    \",\"\",IF(VALUE(TODAY())-VALUE(DataTbl[[#This Row],[Last Touch Dt]])>30,\"No Touch\",\"\"))","v":""}]
["LYNDA M MOORE DDS","2031-10-18"," /  /    "," /  /    "," /  /    ","2022-04-28","2022-04-01","?",null,"2022-03-12",202210,null,"No",0,{"$f":"IF(DataTbl[[#This Row],[Earliest CSED]]=\" /  /    \",\"\",IF(VALUE(DataTbl[[#This Row],[Earliest CSED]])-VALUE(TODAY())<365,\"CSED\",\"\"))","v":""},{"$f":"IF(DataTbl[[#This Row],[Earliest OI Due Date]]=\" /  /    \",\"\",IF(VALUE(DataTbl[[#This Row],[Earliest OI Due Date]])-VALUE(TODAY())<30,\"OI\",\"\"))","v":""},{"$f":"IF(DataTbl[[#This Row],[Follow Up Dt]]=\" /  /    \",\"\",IF(VALUE(DataTbl[[#This Row],[Follow Up Dt]])-VALUE(TODAY())<0,\"FU\",\"\"))","v":""},{"$f":"IF(DataTbl[[#This Row],[Earliest Lien Determ Dt]]=\" /  /    \",\"\",IF(AND(VALUE(DataTbl[[#This Row],[Earliest Lien Determ Dt]])-VALUE(TODAY())<=5,DataTbl[[#This Row],[Lien Determ Cd]]=\"?\"),\"Lien\",\"\"))","v":""},{"$f":"IF(DataTbl[[#This Row],[RO Assign Dt]]=\" /  /    \",\"\",IF(VALUE(TODAY()-VALUE(DataTbl[[#This Row],[RO Assign Dt]]))>545,\"Assign\",\"\"))","v":""},{"$f":"IF(DataTbl[[#This Row],[Initial Contact Due Dt]]=\" /  /    \",\"\",IF(VALUE(DataTbl[[#This Row],[Initial Contact Due Dt]])-VALUE(TODAY())<5,\"Init. Cont.\",\"\"))","v":"Init. Cont."},{"$f":"IF(DataTbl[[#This Row],[Last Touch Dt]]=\" /  /    \",\"\",IF(VALUE(TODAY())-VALUE(DataTbl[[#This Row],[Last Touch Dt]])>30,\"No Touch\",\"\"))","v":"No Touch"}]
["MICHAEL A MOFFITT & EILEEN A MOFFIT","2029-09-23"," /  /    "," /  /    "," /  /    ","2022-04-28"," /  /    ","?",null,"2022-03-12",202210,null,"No",0,{"$f":"IF(DataTbl[[#This Row],[Earliest CSED]]=\" /  /    \",\"\",IF(VALUE(DataTbl[[#This Row],[Earliest CSED]])-VALUE(TODAY())<365,\"CSED\",\"\"))","v":""},{"$f":"IF(DataTbl[[#This Row],[Earliest OI Due Date]]=\" /  /    \",\"\",IF(VALUE(DataTbl[[#This Row],[Earliest OI Due Date]])-VALUE(TODAY())<30,\"OI\",\"\"))","v":""},{"$f":"IF(DataTbl[[#This Row],[Follow Up Dt]]=\" /  /    \",\"\",IF(VALUE(DataTbl[[#This Row],[Follow Up Dt]])-VALUE(TODAY())<0,\"FU\",\"\"))","v":""},{"$f":"IF(DataTbl[[#This Row],[Earliest Lien Determ Dt]]=\" /  /    \",\"\",IF(AND(VALUE(DataTbl[[#This Row],[Earliest Lien Determ Dt]])-VALUE(TODAY())<=5,DataTbl[[#This Row],[Lien Determ Cd]]=\"?\"),\"Lien\",\"\"))","v":""},{"$f":"IF(DataTbl[[#This Row],[RO Assign Dt]]=\" /  /    \",\"\",IF(VALUE(TODAY()-VALUE(DataTbl[[#This Row],[RO Assign Dt]]))>545,\"Assign\",\"\"))","v":""},{"$f":"IF(DataTbl[[#This Row],[Initial Contact Due Dt]]=\" /  /    \",\"\",IF(VALUE(DataTbl[[#This Row],[Initial Contact Due Dt]])-VALUE(TODAY())<5,\"Init. Cont.\",\"\"))","v":"Init. Cont."},{"$f":"IF(DataTbl[[#This Row],[Last Touch Dt]]=\" /  /    \",\"\",IF(VALUE(TODAY())-VALUE(DataTbl[[#This Row],[Last Touch Dt]])>30,\"No Touch\",\"\"))","v":""}]
["SHERRY HYLAND & GEORGE PHILLIPS","2029-10-07"," /  /    "," /  /    "," /  /    ","2022-05-05"," /  /    ","?",null,"2022-03-19",202211,null,"No",0,{"$f":"IF(DataTbl[[#This Row],[Earliest CSED]]=\" /  /    \",\"\",IF(VALUE(DataTbl[[#This Row],[Earliest CSED]])-VALUE(TODAY())<365,\"CSED\",\"\"))","v":""},{"$f":"IF(DataTbl[[#This Row],[Earliest OI Due Date]]=\" /  /    \",\"\",IF(VALUE(DataTbl[[#This Row],[Earliest OI Due Date]])-VALUE(TODAY())<30,\"OI\",\"\"))","v":""},{"$f":"IF(DataTbl[[#This Row],[Follow Up Dt]]=\" /  /    \",\"\",IF(VALUE(DataTbl[[#This Row],[Follow Up Dt]])-VALUE(TODAY())<0,\"FU\",\"\"))","v":""},{"$f":"IF(DataTbl[[#This Row],[Earliest Lien Determ Dt]]=\" /  /    \",\"\",IF(AND(VALUE(DataTbl[[#This Row],[Earliest Lien Determ Dt]])-VALUE(TODAY())<=5,DataTbl[[#This Row],[Lien Determ Cd]]=\"?\"),\"Lien\",\"\"))","v":""},{"$f":"IF(DataTbl[[#This Row],[RO Assign Dt]]=\" /  /    \",\"\",IF(VALUE(TODAY()-VALUE(DataTbl[[#This Row],[RO Assign Dt]]))>545,\"Assign\",\"\"))","v":""},{"$f":"IF(DataTbl[[#This Row],[Initial Contact Due Dt]]=\" /  /    \",\"\",IF(VALUE(DataTbl[[#This Row],[Initial Contact Due Dt]])-VALUE(TODAY())<5,\"Init. Cont.\",\"\"))","v":"Init. Cont."},{"$f":"IF(DataTbl[[#This Row],[Last Touch Dt]]=\" /  /    \",\"\",IF(VALUE(TODAY())-VALUE(DataTbl[[#This Row],[Last Touch Dt]])>30,\"No Touch\",\"\"))","v":""}]
["JEFFREY GARRETT & N HOOD-GARRETT","2031-11-22","2022-05-23"," /  /    "," /  /    ","2022-05-12"," /  /    ","?",null,"2022-03-26",202212,null,"No",0,{"$f":"IF(DataTbl[[#This Row],[Earliest CSED]]=\" /  /    \",\"\",IF(VALUE(DataTbl[[#This Row],[Earliest CSED]])-VALUE(TODAY())<365,\"CSED\",\"\"))","v":""},{"$f":"IF(DataTbl[[#This Row],[Earliest OI Due Date]]=\" /  /    \",\"\",IF(VALUE(DataTbl[[#This Row],[Earliest OI Due Date]])-VALUE(TODAY())<30,\"OI\",\"\"))","v":""},{"$f":"IF(DataTbl[[#This Row],[Follow Up Dt]]=\" /  /    \",\"\",IF(VALUE(DataTbl[[#This Row],[Follow Up Dt]])-VALUE(TODAY())<0,\"FU\",\"\"))","v":""},{"$f":"IF(DataTbl[[#This Row],[Earliest Lien Determ Dt]]=\" /  /    \",\"\",IF(AND(VALUE(DataTbl[[#This Row],[Earliest Lien Determ Dt]])-VALUE(TODAY())<=5,DataTbl[[#This Row],[Lien Determ Cd]]=\"?\"),\"Lien\",\"\"))","v":"Lien"},{"$f":"IF(DataTbl[[#This Row],[RO Assign Dt]]=\" /  /    \",\"\",IF(VALUE(TODAY()-VALUE(DataTbl[[#This Row],[RO Assign Dt]]))>545,\"Assign\",\"\"))","v":""},{"$f":"IF(DataTbl[[#This Row],[Initial Contact Due Dt]]=\" /  /    \",\"\",IF(VALUE(DataTbl[[#This Row],[Initial Contact Due Dt]])-VALUE(TODAY())<5,\"Init. Cont.\",\"\"))","v":"Init. Cont."},{"$f":"IF(DataTbl[[#This Row],[Last Touch Dt]]=\" /  /    \",\"\",IF(VALUE(TODAY())-VALUE(DataTbl[[#This Row],[Last Touch Dt]])>30,\"No Touch\",\"\"))","v":""}]
["CLEVELAND STATE COMMUNITY COLLEGE","2031-08-30","2022-06-23"," /  /    "," /  /    ","2022-06-13"," /  /    ","?",null,"2022-04-28",202216,null,"No",0,{"$f":"IF(DataTbl[[#This Row],[Earliest CSED]]=\" /  /    \",\"\",IF(VALUE(DataTbl[[#This Row],[Earliest CSED]])-VALUE(TODAY())<365,\"CSED\",\"\"))","v":""},{"$f":"IF(DataTbl[[#This Row],[Earliest OI Due Date]]=\" /  /    \",\"\",IF(VALUE(DataTbl[[#This Row],[Earliest OI Due Date]])-VALUE(TODAY())<30,\"OI\",\"\"))","v":""},{"$f":"IF(DataTbl[[#This Row],[Follow Up Dt]]=\" /  /    \",\"\",IF(VALUE(DataTbl[[#This Row],[Follow Up Dt]])-VALUE(TODAY())<0,\"FU\",\"\"))","v":""},{"$f":"IF(DataTbl[[#This Row],[Earliest Lien Determ Dt]]=\" /  /    \",\"\",IF(AND(VALUE(DataTbl[[#This Row],[Earliest Lien Determ Dt]])-VALUE(TODAY())<=5,DataTbl[[#This Row],[Lien Determ Cd]]=\"?\"),\"Lien\",\"\"))","v":""},{"$f":"IF(DataTbl[[#This Row],[RO Assign Dt]]=\" /  /    \",\"\",IF(VALUE(TODAY()-VALUE(DataTbl[[#This Row],[RO Assign Dt]]))>545,\"Assign\",\"\"))","v":""},{"$f":"IF(DataTbl[[#This Row],[Initial Contact Due Dt]]=\" /  /    \",\"\",IF(VALUE(DataTbl[[#This Row],[Initial Contact Due Dt]])-VALUE(TODAY())<5,\"Init. Cont.\",\"\"))","v":""},{"$f":"IF(DataTbl[[#This Row],[Last Touch Dt]]=\" /  /    \",\"\",IF(VALUE(TODAY())-VALUE(DataTbl[[#This Row],[Last Touch Dt]])>30,\"No Touch\",\"\"))","v":""}]
["SAMUEL A & LORI A WELTON","2026-06-08","2022-06-30"," /  /    "," /  /    ","2022-06-20"," /  /    ","?",null,"2022-05-05",202217,null,"No",0,{"$f":"IF(DataTbl[[#This Row],[Earliest CSED]]=\" /  /    \",\"\",IF(VALUE(DataTbl[[#This Row],[Earliest CSED]])-VALUE(TODAY())<365,\"CSED\",\"\"))","v":""},{"$f":"IF(DataTbl[[#This Row],[Earliest OI Due Date]]=\" /  /    \",\"\",IF(VALUE(DataTbl[[#This Row],[Earliest OI Due Date]])-VALUE(TODAY())<30,\"OI\",\"\"))","v":""},{"$f":"IF(DataTbl[[#This Row],[Follow Up Dt]]=\" /  /    \",\"\",IF(VALUE(DataTbl[[#This Row],[Follow Up Dt]])-VALUE(TODAY())<0,\"FU\",\"\"))","v":""},{"$f":"IF(DataTbl[[#This Row],[Earliest Lien Determ Dt]]=\" /  /    \",\"\",IF(AND(VALUE(DataTbl[[#This Row],[Earliest Lien Determ Dt]])-VALUE(TODAY())<=5,DataTbl[[#This Row],[Lien Determ Cd]]=\"?\"),\"Lien\",\"\"))","v":""},{"$f":"IF(DataTbl[[#This Row],[RO Assign Dt]]=\" /  /    \",\"\",IF(VALUE(TODAY()-VALUE(DataTbl[[#This Row],[RO Assign Dt]]))>545,\"Assign\",\"\"))","v":""},{"$f":"IF(DataTbl[[#This Row],[Initial Contact Due Dt]]=\" /  /    \",\"\",IF(VALUE(DataTbl[[#This Row],[Initial Contact Due Dt]])-VALUE(TODAY())<5,\"Init. Cont.\",\"\"))","v":""},{"$f":"IF(DataTbl[[#This Row],[Last Touch Dt]]=\" /  /    \",\"\",IF(VALUE(TODAY())-VALUE(DataTbl[[#This Row],[Last Touch Dt]])>30,\"No Touch\",\"\"))","v":""}]

{"sheet":"Report","index":1,"n_rows":47,"n_cols":3,"rows_kept":47,"cut":false,"hidden":false,"merged":[]}
["CSED",null,"ST FRANCIS HOTEL CORPORATION"]
["STUART F & VICKI L JAMES",null,"RALPH E CURTIS"]
["ARF ENTERPRISES LLC",null,"REX B MATLOCK"]
[null,null,"HUDSON SHERATON CORPORATION LLC"]
["OI",null,"HENDERSON & COMPANY"]
["GENESIS LEARNING & DEVELOPMENT CTR",null,"VECTOR PRINTING LLC"]
["MATLOCK MASONRY LLC"]
["MICHAEL KOZEMZAK",null,"Initial Contact Due"]
["TRACY BUCK MASONRY INC",null,"SPRINGWATER DENTAL INSTITUTE LLC"]
[null,null,"POUR HOUSE BISTRO"]
["Follow-Up",null,"LYNDA M MOORE DDS"]
["PAUL T HART",null,"MICHAEL A MOFFITT & EILEEN A MOFFIT"]
["JOHN P MORGAN",null,"SHERRY HYLAND & GEORGE PHILLIPS"]
["RHEA MEDICAL CENTER",null,"JEFFREY GARRETT & N HOOD-GARRETT"]
["THERESA B BROWDER"]
["RONALD DOUGHTY",null,"30 Day No Touch"]
["THE LITIGATION GROUP PC",null,"BEVERLY WHITTAKER"]
["GROVE STREET MARKET INC",null,"GENESIS LEARNING & DEVELOPMENT CTR"]
["TIMOTHY P SCHULKE",null,"JOHN W WILSON JR"]
["CHATTANOOGA SECURITY GROUP",null,"RALPH E CURTIS"]
["CURTIS LEON GREENE",null,"MATLOCK MASONRY LLC"]
["VECTOR PRINTING LLC",null,"MICHAEL KOZEMZAK"]
["OLC FOODS LLC",null,"TRACY BUCK MASONRY INC"]
["BELINDA L BRIGHT",null,"KIE & ANDREA GARDNER"]
["A WALK OF ELEGANCE FLOORING &",null,"ST FRANCIS HOTEL CORPORATION"]
["RALPH E CURTIS",null,"RALPH E CURTIS"]
["SCOTT E CURTIS",null,"REX B MATLOCK"]
["HUDSON SHERATON CORPORATION LLC",null,"STUART F & VICKI L JAMES"]
["ASHLEY J FINNEY",null,"RONALD DOUGHTY"]
["NITROUS ENDEAVORS INC",null,"TONY A MCCARRELL"]
["LOYS LAWNCARE & LANDSCAPING LLC",null,"HUDSON SHERATON CORPORATION LLC"]
["CHARLES A & JILL K CARPENTER",null,"A WALK OF ELEGANCE FLOORING &"]
["TN VALLEY BUS LINES INC",null,"JOHN P MORGAN"]
["LAMBERTS SOUTHERN PIES & BAKE SHOP",null,"LESLEE P PHILLIPS"]
["DWK LIFE SCIENCES LLC",null,"CLAYTON A MOORE"]
["TOMMY & JILL PARHAM",null,"TN VALLEY BUS LINES INC"]
["WE B INC",null,"GROVE STREET MARKET INC"]
["BRANDON HOWARD",null,"VECTOR PRINTING LLC"]
["STUART F & VICKI L JAMES",null,"WE B INC"]
[null,null,"SPRINGWATER DENTAL INSTITUTE LLC"]
["COI",null,"LYNDA M MOORE DDS"]
["GENESIS LEARNING & DEVELOPMENT CTR"]
["JOHN W WILSON JR"]
["CHARLES A & JILL K CARPENTER"]
["MATLOCK MASONRY LLC"]
["MICHAEL KOZEMZAK"]
["THERESA B BROWDER"]